Workbook

Sheet Hipervínculos
A1: Listado de gráficos - Boletín 2012
A2: (Listado de hipervínculos)
A4: Asistencia a cine en Colombia
A5: 1996 – Junio 2011
A8: Índice de asistencia a cine en Colombia
A9: 1996 – 2011*
A12: Taquilla del mercado cinematográfico en Colombia
A13: 1996 – Junio 2011
A16: Estrenos cinematográficos en Colombia
A17: 1996 – Junio 2011
A20: Estreno de películas colombianas
A21: 1996 – Junio 2011
A24: Asistencia a películas colombianas
A25: 1996 – Junio 2011
A28: Participación de las películas nacionales en el total de estrenos en Colombia
A29: 1996 – Junio 2011
A32: Participación de las películas nacionales en el total de asistencia en Colombia
A33: 1996 – Junio 2011
A35: Participación de las películas nacionales en el total de estrenos y asistencia en Colombia
A36: 1996 – Junio 2011
A39: Las cinco películas más taquilleras por año en Colombia
A40: 2007 – Junio 2011
A43: Las cinco películas colombianas más taquilleras por año
A44: 2007 – Junio 2011
A46: Tamaño relativo de Colombia: Población y PIB por habitante
A47: Población | B47: PIB por habitante
A49: Asistencia a cine en algunos países iberoamericanos y Estados Unidos/Canadá. 2000-2010
A52: Índice de asistencia en algunos países iberoamericanos y Estados Unidos/Canadá. 2000-2010
A54: Estrenos de largometrajes nacionales en algunos países iberoamericanos y Estados Unidos/Canadá. 2000-2010
A57: Asistencia a largometrajes nacionales en algunos países iberoamericanos
A58: 2007 – 2010
A61: Participación promedio de los espectadores de largometrajes nacionales en el total de espectadores en algunos países iberoamericanos
A62: 2007 – 2010
A65: Recursos aprobados para el FDC
A66: Millones de pesos corrientes. 2004 - 2011*
A69: Asignación de los estímulos aprobados para el FDC
A70: Millones de pesos corrientes. 2004 - 2011*
A73: Estímulos aprobados para el FDC*- Producción 70%
A74: Millones de pesos corrientes. 2004 - 2011*
A77: Estímulos tributarios
A78: Millones de pesos corrientes. 2004 - 2010*
A83: Gráfico 1
A84: Asistencia a cine en Colombia
A85: 1996 – Junio 2011
A87: Gráfico 2
A88: Asistencia a cine en algunos países iberoamericanos y Estados Unidos/Canadá. 2000-2010
A90: Gráfico 3
A91: Índice de asistencia en algunos países iberoamericanos y Estados Unidos/Canadá. 2000-2010
A94: Gráfico 4
A95: Salas de exhibición en Colombia
A96: 2006 – 2011*
A99: Gráfico 5
A100: Asistencia a cine en las principales ciudades
A101: 2007 - 2011*
A104: Gráfico 6
A105: Evolución real del precio promedio de la boleta en Colombia
A106: 1996 - 2011*

Sheet Asistencia cine por ciudades
B1: =+'[1]a1_1 ind'!Z2 -> Admisiones
A2: =+'[1]a1_1 ind'!Y3 ->  | B2: =+'[1]a1_1 ind'!Z3 -> BARRANQUILLA | C2: =+'[1]a1_1 ind'!AA3 -> BOGOTA | D2: =+'[1]a1_1 ind'!AB3 -> CALI | E2: =+'[1]a1_1 ind'!AC3 -> MEDELLIN | F2: =+'[1]a1_1 ind'!AD3 -> RESTO | G2: =+'[1]a1_1 ind'!AE3 -> TOTAL | H2: Espectadores
B3: =PROPER(B2) -> Barranquilla | C3: Bogota | D3: Cali | E3: Medellin | F3: Resto | G3: Total
A4: =+'[1]a1_1 ind'!Y4 -> 2007 | B4: =+'[1]a1_1 ind'!Z4 -> 929241 | C4: =+'[1]a1_1 ind'!AA4 -> 9493415 | D4: =+'[1]a1_1 ind'!AB4 -> 2165068 | E4: =+'[1]a1_1 ind'!AC4 -> 2748120 | F4: =+'[1]a1_1 ind'!AD4 -> 5333114 | G4: =+'[1]a1_1 ind'!AE4 -> 20668958
A5: =+'[1]a1_1 ind'!Y5 -> 2008 | B5: =+'[1]a1_1 ind'!Z5 -> 1128151 | C5: =+'[1]a1_1 ind'!AA5 -> 9594614 | D5: =+'[1]a1_1 ind'!AB5 -> 2129496 | E5: =+'[1]a1_1 ind'!AC5 -> 2836603 | F5: =+'[1]a1_1 ind'!AD5 -> 5874013 | G5: =+'[1]a1_1 ind'!AE5 -> 21562877
A6: =+'[1]a1_1 ind'!Y6 -> 2009 | B6: =+'[1]a1_1 ind'!Z6 -> 1256435 | C6: =+'[1]a1_1 ind'!AA6 -> 12465304 | D6: =+'[1]a1_1 ind'!AB6 -> 2325329 | E6: =+'[1]a1_1 ind'!AC6 -> 3156460 | F6: =+'[1]a1_1 ind'!AD6 -> 7864157 | G6: =+'[1]a1_1 ind'!AE6 -> 27067685
A7: =+'[1]a1_1 ind'!Y7 -> 2010 | B7: =+'[1]a1_1 ind'!Z7 -> 1472241 | C7: =+'[1]a1_1 ind'!AA7 -> 14907415 | D7: =+'[1]a1_1 ind'!AB7 -> 3338962 | E7: =+'[1]a1_1 ind'!AC7 -> 3594476 | F7: =+'[1]a1_1 ind'!AD7 -> 10341997 | G7: =+'[1]a1_1 ind'!AE7 -> 33655091
A8: 2011 | B8: =+'[2]a1_1 ind'!$Z$8 -> 1653707 | C8: =+'[2]a1_1 ind'!$AA$8 -> 16160441 | D8: =+'[2]a1_1 ind'!$AB$8 -> 3825337 | E8: =+'[2]a1_1 ind'!$AC$8 -> 3816458 | F8: =+'[2]a1_1 ind'!$AD$8 -> 12556010 | G8: =+'[2]a1_1 ind'!$AE$8 -> 38011953
A9: 2012 | B9: 1749254 | C9: 17197612 | D9: 4158940 | E9: 3832382 | F9: 13909701 | G9: =+SUM(B9:F9) -> 40847889
A10: 2do Sem. 2011 | B10: 834957 | C10: 7988571 | D10: 1888813 | E10: 1826641 | F10: 6425060 | G10: =+SUM(B10:F10) -> 18964042
A11: 2do Sem. 2012 | B11: 876395 | C11: 8708180 | D11: 2102272 | E11: 1906555 | F11: 7018000 | G11: =+SUM(B11:F11) -> 20611402
G14: Asistencia a cine en las principales ciudades
F15: 2007 - 2011*
B21: Barranquilla | C21: Cali | D21: Medellín | E21: Resto (44 ciudades) | F21: Bogotá | G21: Total | H21: B/quilla | I21: Cali | J21: Medellin | K21: Resto | L21: Bogotá
A22: 2007 | B22: 929241 | C22: 2165068 | D22: 2748120 | E22: 5333114 | F22: 9493415 | G22: 20668958 | H22: =+E22/G22 -> 0.2580252957 | I22: =+F22/G22 -> 0.4593078664 | J22: =+B22/G22 -> 0.04495828962 | K22: =+C22/G22 -> 0.1047497411 | L22: =+D22/G22 -> 0.1329588071
A23: 2008 | B23: 1128151 | C23: 2129496 | D23: 2836603 | E23: 5874013 | F23: 9594614 | G23: 21562877 | H23: 0.2724132313 | I23: 0.4449598261 | J23: 0.05231913163 | K23: 0.0987575081 | L23: 0.1315503029
A24: 2009 | B24: 1256435 | C24: 2325329 | D24: 3156460 | E24: 7864157 | F24: 12465304 | G24: 27067685 | H24: 0.2905367415 | I24: 0.4605234618 | J24: 0.04641826591 | K24: 0.08590793782 | L24: 0.1166135929
A25: 2010 | B25: 1472241 | C25: 3338962 | D25: 3594476 | E25: 10341997 | F25: 14907415 | G25: 33655091 | H25: 0.307293687 | I25: 0.4429468041 | J25: 0.0437449716 | K25: 0.09921120106 | L25: 0.1068033362
A26: 2011 | B26: 1653707 | C26: 3825337 | D26: 3816458 | E26: 12556010 | F26: 16160441 | G26: 38011953 | H26: 0.3303174136 | I26: 0.4251410339 | J26: 0.04350492068 | K26: 0.1006351081 | L26: 0.1004015237
A27: 2012 | B27: 1749254 | C27: 4158940 | D27: 3832382 | E27: 13909701 | F27: 17197612 | G27: =+SUM(B27:F27) -> 40847889 | H27: 0.3405243537 | I27: 0.4210159306 | J27: 0.04282360834 | K27: 0.1018152982 | L27: 0.0938208092
A28: 2do Sem. 2011 | B28: 834957 | C28: 1888813 | D28: 1826641 | E28: 6425060 | F28: 7988571 | G28: =+SUM(B28:F28) -> 18964042
A29: 2do Sem. 2012 | B29: 876395 | C29: 2102272 | D29: 1906555 | E29: 7018000 | F29: 8708180 | G29: =+SUM(B29:F29) -> 20611402
B30: =+B28/G28 -> 0.04402843023 | C30: =+C28/G28 -> 0.09959970559 | D30: =+D28/G28 -> 0.09632129058 | E30: =+E28/G28 -> 0.3388022448 | F30: =+F28/G28 -> 0.4212483288
H31: =+B27/B26-1 -> 0.05777746602 | I31: =+C27/C26-1 -> 0.0872087871 | J31: =+D27/D26-1 -> 0.004172455193 | K31: =+E27/E26-1 -> 0.1078121951 | L31: =+F27/F26-1 -> 0.06417962233
B32: =+(B28/B27)-1 -> -0.5226782388 | C32: -0.5458426907 | D32: -0.5233666686 | E32: -0.5380878424 | F32: -0.5354837055 | G32: -0.5357399742
B36: Barranquilla | C36: 0.043
B37: Cali | C37: 0.102
B38: Medellín | C38: 0.095
B39: Bogotá | C39: 0.42
B40: Resto | C40: 0.341
B43: Barranquilla | C43: Cali | D43: Medellín | E43: Resto (44 ciudades) | F43: Bogotá
A44: 2007 | B44: =+B22/$G$22 -> 0.04495828962 | C44: =+C22/$G$22 -> 0.1047497411 | D44: =+D22/$G$22 -> 0.1329588071 | E44: =+E22/$G$22 -> 0.2580252957 | F44: =+F22/$G$22 -> 0.4593078664 | G44: =+F44+E44+D44+C44+B44 -> 1
A45: 2008 | B45: =+B23/$G$23 -> 0.05231913163 | C45: =+C23/$G$23 -> 0.0987575081 | D45: =+D23/$G$23 -> 0.1315503029 | E45: =+E23/$G$23 -> 0.2724132313 | F45: =+F23/$G$23 -> 0.4449598261 | G45: =+F45+E45+D45+C45+B45 -> 1
A46: 2009 | B46: =+B24/$G$24 -> 0.04641826591 | C46: =+C24/$G$24 -> 0.08590793782 | D46: =+D24/$G$24 -> 0.1166135929 | E46: =+E24/$G$24 -> 0.2905367415 | F46: =+F24/$G$24 -> 0.4605234618 | G46: 1
A47: 2010 | B47: =+B25/$G$25 -> 0.0437449716 | C47: =+C25/$G$25 -> 0.09921120106 | D47: =+D25/$G$25 -> 0.1068033362 | E47: =+E25/$G$25 -> 0.307293687 | F47: =+F25/$G$25 -> 0.4429468041 | G47: 1
A48: 2011 | B48: =+B26/$G$26 -> 0.04350492068 | C48: =+C26/$G$26 -> 0.1006351081 | D48: =+D26/$G$26 -> 0.1004015237 | E48: =+E26/$G$26 -> 0.3303174136 | F48: =+F26/$G$26 -> 0.4251410339 | G48: 1
A49: 2012 | B49: =+B27/$G$27 -> 0.04282360834 | C49: =+C27/$G$27 -> 0.1018152982 | D49: =+D27/$G$27 -> 0.0938208092 | E49: =+E27/$G$27 -> 0.3405243537 | F49: =+F27/$G$27 -> 0.4210159306 | G49: =+F49+E49+D49+C49+B49 -> 1
A50: 2do Sem. 2011 | B50: =+B28/$G$26 -> 0.02196564328 | C50: 0.04968997515 | D50: 0.04805438437 | E50: 0.1690273583 | F50: 0.2101594464 | G50: 0.4988968075
A51: 2do Sem. 2012 | B51: 0.02305577406 | C51: 0.05530555086 | D51: 0.05015672307 | E51: 0.1846261359 | F51: 0.2290905705 | G51: 0.5422347544
B54: =+B49/B48-1 -> -0.01566058107 | C54: =+C49/C48-1 -> 0.01172741916 | D54: =+D49/D48-1 -> -0.06554397044 | E54: =+E49/E48-1 -> 0.03090039962 | F54: =+F49/F48-1 -> -0.009702905641
I57: Espectadores 2011*

Sheet Asistencia a Cine en Colombia
B1: =+[1]a1_ind!AN6 -> Espectadores | C1: =+[1]a5_ind!AH2 -> Películas colombianas
C2: =+[1]a5_ind!AH3 -> Espectatores | D2: Asistencia | E2: Estrenos | F2: % | G2: Asistencia a cine en Colombia | AA2: TRM
A3: =+[1]a1_ind!AM7 -> 1990 | B3: =+[1]a1_ind!AN7 -> 26400000 | G3: 1996 –2011 | AA3: 2007 | AB3: 2077.810833 | AD3: =+P6/AB3*1000 -> 38.16075722
A4: =+[1]a1_ind!AM8 -> 1991 | B4: =+[1]a1_ind!AN8 -> 25200000 | O4: Taquillas Historica Primer semestre | AA4: 2008 | AB4: 1965.1375 | AD4: 41.80936564 | AE4: =+(AD4/AD3)-1 -> 0.09561153096
A5: =+[1]a1_ind!AM9 -> 1992 | B5: =+[1]a1_ind!AN9 -> 18700000 | AA5: 2009 | AB5: 2157.598333 | AD5: 44.41321088 | AE5: =+(AD5/AD4)-1 -> 0.06227899424 | AH5: =6700/AB8 -> 3.726112214
A6: =+[1]a1_ind!AM10 -> 1993 | B6: =+[1]a1_ind!AN10 -> 17600000 | O6: 2007 | P6: =79290834761/10^9 -> 79.29083476 | Q6: =148725883903/10^9 -> 148.7258839 | R6: =+P6/Q6 -> 0.533134063 | AA6: 2010 | AB6: 1898.9975 | AD6: 66.03753621 | AE6: =+(AD6/AD5)-1 -> 0.4868894839 | AH6: =8300/AB8 -> 4.615930057
A7: =+[1]a1_ind!AM11 -> 1994 | B7: =+[1]a1_ind!AN11 -> 17500000 | O7: 2008 | P7: =82161152272/10^9 -> 82.16115227 | Q7: =159980785142/10^9 -> 159.9807851 | R7: =+P7/Q7 -> 0.5135688777 | S7: =+(P7/P6)-1 -> 0.03619986496 | AA7: 2011 | AB7: 1848.02 | AD7: 80.45754832 | AE7: =+(AD7/AD6)-1 -> 0.2183608436
A8: =+[1]a1_ind!AM12 -> 1995 | B8: =+[1]a1_ind!AN12 -> 17500000 | O8: 2009 | P8: =95825869779/10^9 -> 95.82586978 | Q8: =198078594887/10^9 -> 198.0785949 | R8: =+P8/Q8 -> 0.483777007 | S8: =+(P8/P7)-1 -> 0.1663160402 | AA8: 2012 | AB8: 1798.120833 | AD8: 90.95733463 | AE8: =+(AD8/AD7)-1 -> 0.1305009478 | AH8: =10130/AB8 -> 5.633659214
A9: =+[1]a1_ind!AM13 -> 1996 | B9: =+[1]a1_ind!AN13 -> 18050000 | C9: =+[1]a5_ind!AH4 -> 987000 | D9: =+C9/B9*100 -> 5.468144044 | E9: =+'Estrenos de películas Col.'!D5 -> 1.098901099 | F9: =+(B9-B8)/B8 -> 0.03142857143 | O9: 2010 | P9: =125405116168/10^9 -> 125.4051162 | Q9: =258087337650/10^9 -> 258.0873376 | R9: =+P9/Q9 -> 0.4859018552 | S9: =+(P9/P8)-1 -> 0.3086770457
A10: =+[1]a1_ind!AM14 -> 1997 | B10: =+[1]a1_ind!AN14 -> 17850000 | C10: =+[1]a5_ind!AH5 -> 100000 | D10: =+C10/B10*100 -> 0.5602240896 | E10: =+'Estrenos de películas Col.'!D6 -> 0.3968253968 | F10: =+(B10-B9)/B9 -> -0.01108033241 | O10: 2011 | P10: =148687158453/10^9 -> 148.6871585 | Q10: =294039628303/10^9 -> 294.0396283 | R10: =+P10/Q10 -> 0.5056704748 | S10: =+(P10/P9)-1 -> 0.1856546447
A11: =+[1]a1_ind!AM15 -> 1998 | B11: =+[1]a1_ind!AN15 -> 18350000 | C11: =+[1]a5_ind!AH6 -> 1422000 | D11: 7.749318801 | E11: =+'Estrenos de películas Col.'!D7 -> 1.659751037 | F11: 0.02801120448 | O11: 2012 | P11: =163552278350/10^9 -> 163.5522783 | S11: =+(P11/P10)-1 -> 0.09997581534
A12: =+[1]a1_ind!AM16 -> 1999 | B12: =+[1]a1_ind!AN16 -> 15990000 | C12: =+[1]a5_ind!AH7 -> 112000 | D12: 0.7004377736 | E12: =+'Estrenos de películas Col.'!D8 -> 1.219512195 | F12: -0.1286103542 | O12: Espectadores Hostorico Primer semestre
A13: =+[1]a1_ind!AM17 -> 2000 | B13: =+[1]a1_ind!AN17 -> 17200000 | C13: =+[1]a5_ind!AH8 -> 618000 | D13: 3.593023256 | E13: =+'Estrenos de películas Col.'!D9 -> 1.960784314 | F13: 0.07567229518 | O13: 2007 | P13: =10883429/10^6 -> 10.883429 | Q13: =20668958/10^6 -> 20.668958 | R13: =+P13/Q13 -> 0.5265591521
A14: =+[1]a1_ind!AM18 -> 2001 | B14: =+[1]a1_ind!AN18 -> 17798000 | C14: =+[1]a5_ind!AH9 -> 84000 | D14: 0.4719631419 | E14: =+'Estrenos de películas Col.'!D10 -> 3.448275862 | F14: 0.03476744186 | O14: 2008 | P14: =10932900/10^6 -> 10.9329 | Q14: =21562877/10^6 -> 21.562877 | R14: =+P14/Q14 -> 0.5070241786 | S14: =+(P14/P13)-1 -> 0.004545534316
A15: =+[1]a1_ind!AM19 -> 2002 | B15: =+[1]a1_ind!AN19 -> 18399000 | C15: =+[1]a5_ind!AH10 -> 854541 | D15: 4.644496984 | E15: =+'Estrenos de películas Col.'!D11 -> 2.222222222 | F15: 0.03376783908 | O15: 2009 | P15: =12525838/10^6 -> 12.525838 | Q15: =27067685/10^6 -> 27.067685 | R15: =+P15/Q15 -> 0.4627598555 | S15: =+(P15/P14)-1 -> 0.1457013235
A16: =+[1]a1_ind!AM20 -> 2003 | B16: =+[1]a1_ind!AN20 -> 17086000 | C16: =+[1]a5_ind!AH11 -> 577304 | D16: =+C16/B16*100 -> 3.378813063 | E16: =+'Estrenos de películas Col.'!D12 -> 2.857142857 | F16: -0.07136257405 | O16: 2010 | P16: =16639700/10^6 -> 16.6397 | Q16: =33655091/10^6 -> 33.655091 | R16: =+P16/Q16 -> 0.4944185116 | S16: =+(P16/P15)-1 -> 0.3284300819
A17: =+[1]a1_ind!AM21 -> 2004 | B17: =+[1]a1_ind!AN21 -> 17122000 | C17: =+[1]a5_ind!AH12 -> 944700 | D17: 5.517462913 | E17: =+'Estrenos de películas Col.'!D13 -> 4.790419162 | F17: 0.002106988177 | O17: 2011 | P17: =19047911/10^6 -> 19.047911 | Q17: =38011953/10^6 -> 38.011953 | R17: =+P17/Q17 -> 0.5011031925 | S17: =+(P17/P16)-1 -> 0.144726828
A18: =+[1]a1_ind!AM22 -> 2005 | B18: =+[1]a1_ind!AN22 -> 15940000 | C18: =+[1]a5_ind!AH13 -> 1979106 | D18: 12.4159724 | E18: =+'Estrenos de películas Col.'!D14 -> 4.87804878 | F18: -0.06903399136 | O18: 2012 | P18: =20236487/10^6 -> 20.236487 | S18: =+(P18/P17)-1 -> 0.06239928357
A19: =+[1]a1_ind!AM23 -> 2006 | B19: =+[1]a1_ind!AN23 -> 20216614 | C19: =+[1]a5_ind!AH14 -> 2806892 | D19: 13.88408563 | E19: =+'Estrenos de películas Col.'!D15 -> 4.938271605 | F19: 0.2682944793
A20: =+[1]a1_ind!AM24 -> 2007 | B20: =+[1]a1_ind!AN24 -> 20668958 | C20: =+[1]a5_ind!AH15 -> 2387135 | D20: 11.54937274 | E20: =+'Estrenos de películas Col.'!D16 -> 5.291005291 | F20: 0.02237486455
A21: =+[1]a1_ind!AM25 -> 2008 | B21: =+[1]a1_ind!AN25 -> 21562877 | C21: =+[1]a5_ind!AH16 -> 2278429 | D21: 10.5664425 | E21: =+'Estrenos de películas Col.'!D17 -> 6.103286385 | F21: 0.04324935006
A22: =+[1]a1_ind!AM26 -> 2009 | B22: =+[1]a1_ind!AN26 -> 27067685 | C22: =+[1]a5_ind!AH17 -> 1208280 | D22: 4.463920723 | E22: =+'Estrenos de películas Col.'!D18 -> 5.607476636 | F22: 0.25529098
A23: =+[1]a1_ind!AM27 -> 2010 | B23: =+[1]a1_ind!AN27 -> 33655091 | C23: =+[1]a5_ind!AH18 -> 1530700 | D23: 4.548197478 | E23: =+'Estrenos de películas Col.'!D19 -> 4.854368932 | F23: 0.2433679127
A24: 2011 | B24: =+[2]a1_ind!$AN$28 -> 38011953 | C24: 2993737 | D24: =+C24/B24*100 -> 7.875777916 | E24: =+'Estrenos de películas Col.'!D20 -> 8.737864078 | F24: 0.1294562537 | G24: =+C24-C23 -> 1463037
A25: 2012* | B25: =+[2]a1_ind!$AN$28 -> 38011953 | C25: 1619859 | D25: =+C25/B25*100 -> 4.261446393 | E25: =+'Estrenos de películas Col.'!D21 -> 10.79812207
A26: 2011* | B26: =+[2]a1_ind!$AN$28 -> 38011953 | C26: =+[2]a5_ind!$AH$21 -> 2176843 | D26: 5.726732852 | E26: =+'Estrenos de películas Col.'!D22 -> 10.81081081
A27: 2012** | B27: =+[2]a1_ind!$AN$28 -> 38011953 | D27: 0 | E27: =+'Estrenos de películas Col.'!D23 -> 11.71171171
B28: =+[2]a1_ind!$AN$28 -> 38011953 | D28: 0 | E28: =+'Estrenos de películas Col.'!D24 -> 4.884398346
A29: 2012 | B29: 40847889 | C29: 3385882 | D29: 8.289001177 | E29: =+'Estrenos de películas Col.'!D21 -> 10.79812207
A30: 2011 II Sem. | B30: 18964042 | C30: 816894 | D30: 4.307594341 | E30: =+'Estrenos de películas Col.'!D22 -> 10.81081081
A31: 2012 II Sem. | B31: 20611402 | C31: 1765882 | D31: 8.567500648 | E31: =+'Estrenos de películas Col.'!D23 -> 11.71171171
G33: Participación de las películas nacionales en el total de asistencia en Colombia
G34: 1996 – 2011
AC35: TRM | AE35: Tquilla Usd
AC36: 2007 | AD36: 2077.810833 | AE36: =+Q40/AD36*1000 -> 33.41740645
AC37: 2008 | AD37: 1965.1375 | AE37: 39.6000956 | AF37: =+AE37/AE36-1 -> 0.1850140334
P38: Taquillas Historica Segundo semestre | AC38: 2009 | AD38: 2157.598333 | AE38: 47.39191884 | AF38: =+AE38/AE37-1 -> 0.1967627381
AC39: 2010 | AD39: 1898.9975 | AE39: 69.86961356 | AF39: =+AE39/AE38-1 -> 0.4742938305
P40: 2007 | Q40: =+SUM([3]a1_ind!$I$7:$N$7)/10^9 -> 69.43504914 | R40: =148725883903/10^9 -> 148.7258839 | S40: =+Q40/R40 -> 0.466865937 | AC40: 2011 | AD40: 1848.02 | AE40: 78.65308268 | AF40: =+AE40/AE39-1 -> 0.1257122899
P41: 2008 | Q41: =+SUM([3]a1_ind!$I$8:$N$8)/10^9 -> 77.81963287 | R41: =159980785142/10^9 -> 159.9807851 | S41: 0.4864311223 | T41: =+Q41/Q40-1 -> 0.1207543428 | AC41: 2012 | AD41: 1798.120833 | AE41: 91.31550998 | AF41: =+AE41/AE40-1 -> 0.1609908585
P42: 2009 | Q42: =+SUM([3]a1_ind!$I$9:$N$9)/10^9 -> 102.2527251 | R42: =198078594887/10^9 -> 198.0785949 | S42: 0.516222993 | T42: =+Q42/Q41-1 -> 0.3139707981
P43: 2010 | Q43: =+SUM([3]a1_ind!$I$10:$N$10)/10^9 -> 132.6822215 | R43: =258087337650/10^9 -> 258.0873376 | S43: 0.5140981448 | T43: =+Q43/Q42-1 -> 0.2975910553
P44: 2011 | Q44: =+SUM([3]a1_ind!$I$11:$N$11)/10^9 -> 145.3524699 | R44: =294039628303/10^9 -> 294.0396283 | S44: 0.4943295252 | T44: =+Q44/Q43-1 -> 0.09549318836
P45: 2012 | Q45: =+SUM([3]a1_ind!$I$12:$N$12)/10^9 -> 164.1963209 | R45: =327748599249/10^9 -> 327.7485992 | S45: 0.5009825253 | T45: =+Q45/Q44-1 -> 0.1296424551
P48: Espectadores Historico Segundo semestre
P50: 2007 | Q50: =+SUM([3]a1_ind!$Y$7:$AD$7)/10^6 -> 9.785529 | R50: =20668958/10^6 -> 20.668958 | S50: =+Q50/R50 -> 0.4734408479
P51: 2008 | Q51: =+SUM([3]a1_ind!$Y$8:$AD$8)/10^6 -> 10.629977 | R51: =21562877/10^6 -> 21.562877 | S51: 0.4929758214 | T51: =+Q51/Q50-1 -> 0.08629559015
P52: 2009 | Q52: =+SUM([3]a1_ind!$Y$9:$AD$9)/10^6 -> 14.541847 | R52: =27067685/10^6 -> 27.067685 | S52: 0.5372401445 | T52: =+Q52/Q51-1 -> 0.3680036184
P53: 2010 | Q53: =+SUM([3]a1_ind!$Y$10:$AD$10)/10^6 -> 17.015391 | R53: =33655091/10^6 -> 33.655091 | S53: 0.5055814884 | T53: =+Q53/Q52-1 -> 0.1700983376
P54: 2011 | Q54: =+SUM([3]a1_ind!$Y$11:$AD$11)/10^6 -> 18.964042 | R54: =38011953/10^6 -> 38.011953 | S54: 0.4988968075 | T54: =+Q54/Q53-1 -> 0.1145228458
P55: 2012 | Q55: =+SUM([3]a1_ind!$Y$12:$AD$12)/10^6 -> 20.611402 | R55: =40847889/10^6 -> 40.847889 | S55: 0.50458916 | T55: =+Q55/Q54-1 -> 0.08686755703
Q57: =+Q55-Q54 -> 1.64736
A61: Participación de las películas nacionales en el total de estrenos y asistencia en Colombia
A62: 1996 – 2011

Sheet Salas de Exhibición
B1: =+[1]a14_ind!T6 -> COMPLEJOS | C1: =+[1]a14_ind!U6 -> SALAS | D1: =+[1]a14_ind!V6 -> Población | E1: =+[1]a14_ind!W6 -> Salas por millón de habitantes
B2: Complejos | C2: Salas | E2: Salas por millón de habitantes
A3: =+[1]a14_ind!S7 -> 2006 | B3: =+[1]a14_ind!T7 -> 123 | C3: =+[1]a14_ind!U7 -> 424 | D3: =+[1]a14_ind!V7 -> 43405956 | E3: =+[1]a14_ind!W7 -> 9.768244708
A4: =+[1]a14_ind!S8 -> 2007 | B4: =+[1]a14_ind!T8 -> 127 | C4: =+[1]a14_ind!U8 -> 462 | D4: =+[1]a14_ind!V8 -> 43926929 | E4: =+[1]a14_ind!W8 -> 10.5174664 | AF4: Salas por ciudad
A5: =+[1]a14_ind!S9 -> 2008 | B5: =+[1]a14_ind!T9 -> 138 | C5: =+[1]a14_ind!U9 -> 536 | D5: =+[1]a14_ind!V9 -> 44451147 | E5: =+[1]a14_ind!W9 -> 12.05818154 | AF5: Etiquetas de fila | AG5: 0
A6: =+[1]a14_ind!S10 -> 2009 | B6: =+[1]a14_ind!T10 -> 125 | C6: =+[1]a14_ind!U10 -> 530 | D6: =+[1]a14_ind!V10 -> 44978832 | E6: =+[1]a14_ind!W10 -> 11.78332065 | AH6: CINE COLOMBIA | AI6: CINEMARK | AJ6: PROCINAL | AK6: RESTO | AL6: ROYAL FILMS LTDA | AM6: Total general
A7: =+[1]a14_ind!S11 -> 2010 | B7: =+[1]a14_ind!T11 -> 128 | C7: =+[1]a14_ind!U11 -> 588 | D7: =+[1]a14_ind!V11 -> 45509584 | E7: =+[1]a14_ind!W11 -> 12.92035541 | AF7: 2011 | AH7: =+PROPER(AH6) -> Cine Colombia | AI7: Cinemark | AJ7: Procinal | AK7: Resto | AL7: Royal Films Ltda | AM7: Total General
A8: 2011 | B8: 139 | C8: 643 | D8: =+[1]a14_ind!V12 -> 46044601 | E8: =+C8/(D8/1000000) -> 13.96472086 | AF8: BARRANQUILLA | AG8: =+PROPER(AF8) -> Barranquilla | AH8: 8 | AK8: 7 | AL8: 23 | AM8: 38
A9: 2012 | B9: 164 | C9: 704 | AF9: MEDELLIN | AG9: =+PROPER(AF9) -> Medellin | AH9: 30 | AI9: 10 | AJ9: 23 | AK9: 2 | AL9: 12 | AM9: 77
A10: 2011 II Sem. | C10: 675 | AF10: RESTO | AG10: =+PROPER(AF10) -> Resto | AH10: 45 | AI10: 56 | AJ10: 27 | AK10: 65 | AL10: 46 | AM10: 239
A11: 2012 II Sem. | AF11: BOGOTA | AG11: =+PROPER(AF11) -> Bogota | AH11: 108 | AI11: 26 | AJ11: 62 | AK11: 25 | AM11: 221
AH12: =+SUM(AH8:AH11) -> 191 | AI12: 92 | AJ12: 112 | AK12: 99 | AL12: 81 | AM12: 575
A13: =+[1]a14_ind!S18 -> 2011* | AH13: 225 | AI13: 86 | AJ13: 109 | AK13: 86 | AL13: 85 | AM13: 591
A14: =+[1]a14_ind!S19 -> EXHIBIDOR | B14: =+[1]a14_ind!T19 -> COMPLEJOS | C14: =+[1]a14_ind!U19 -> SALAS | D14: =+[1]a14_ind!V19 -> PARTICIPACIÓN COMPLEJOS | E14: =+[1]a14_ind!W19 -> PARTICIPACIÓN SALAS | AH14: =+AH12-AH13 -> -34 | AI14: 6 | AJ14: 3 | AK14: 13 | AL14: -4 | AM14: -16
A15: =+[1]a14_ind!S20 -> CINE COLOMBIA | B15: =+[1]a14_ind!T20 -> 35 | C15: =+[1]a14_ind!U20 -> 225 | AF15: Distribución de salas de cine por ciudad
A16: =+[1]a14_ind!S21 -> PROCINAL | B16: =+[1]a14_ind!T21 -> 23 | C16: =+[1]a14_ind!U21 -> 109
A17: =+[1]a14_ind!S22 -> CINEMARK | B17: =+[1]a14_ind!T22 -> 16 | C17: =+[1]a14_ind!U22 -> 86
A18: =+[1]a14_ind!S23 -> ROYAL FILMS LTDA | B18: =+[1]a14_ind!T23 -> 19 | C18: =+[1]a14_ind!U23 -> 85
A19: =+[1]a14_ind!S24 -> RESTO | B19: =+[1]a14_ind!T24 -> 34 | C19: =+[1]a14_ind!U24 -> 86
A20: =+[1]a14_ind!S25 -> TOTALES | B20: =+[1]a14_ind!T25 -> 127 | C20: =+[1]a14_ind!U25 -> 591
A22: 2011
A23: EXHIBIDOR | B23: Complejos | C23: Salas
A24: Cine Colombia | B24: 36 | C24: 229
A25: Procinal | B25: 24 | C25: 112
A26: Cinemark | B26: 17 | C26: 92
A27: Royal Films | B27: 21 | C27: 94
A28: Resto | B28: 41 | C28: 116
A29: no complejos
A30: 2006 | B30: 123 | F30: Salas de exhibición en Colombia
A31: 2007 | B31: 127 | F31: 2006 – 2011*
A32: 2008 | B32: 138
A33: 2009 | B33: 125
A34: 2010 | B34: 128
A35: 2011 | B35: 139
A36: 2012 | B36: 156 | C36: =+B36-B35 -> 17
A40: 2007 | H40: 462
A41: BOGOTA | H41: =185/$H$40 -> 0.4004329004
A42: RESTO | H42: =142/H40 -> 0.3073593074
A43: MEDELLIN | H43: =64/H40 -> 0.1385281385
A44: CALI | H44: =42/H40 -> 0.09090909091
A45: BARRANQUILLA | H45: =29/H40 -> 0.06277056277
A46: 2008 | H46: 536
A47: BOGOTA | H47: =202/H46 -> 0.3768656716
A48: RESTO | H48: =179/H46 -> 0.3339552239
A49: MEDELLIN | H49: =76/H46 -> 0.1417910448
A50: CALI | H50: =49/H46 -> 0.09141791045
A51: BARRANQUILLA | H51: =30/H46 -> 0.05597014925
A52: 2009 | H52: 530
A53: BOGOTA | H53: =200/H52 -> 0.3773584906
A54: RESTO | H54: =177/H52 -> 0.3339622642 | W54: a14 | X54: Salas
A55: MEDELLIN | H55: =71/H52 -> 0.1339622642
A56: CALI | H56: =53/H52 -> 0.1
A57: BARRANQUILLA | H57: =29/H52 -> 0.05471698113
A58: 2010 | H58: 588
A59: BOGOTA | H59: =210/H58 -> 0.3571428571
A60: RESTO | H60: =201/H58 -> 0.3418367347
A61: MEDELLIN | H61: =77/H58 -> 0.130952381
A62: CALI | H62: =68/H58 -> 0.1156462585
A63: BARRANQUILLA | H63: =32/H58 -> 0.05442176871
A64: 2011 | H64: 643
A65: RESTO | H65: =239/H64 -> 0.3716951788
A66: BOGOTA | H66: =221/H64 -> 0.3437013997
A67: MEDELLIN | H67: =77/H64 -> 0.1197511664
A68: CALI | H68: =68/H64 -> 0.1057542768
A69: BARRANQUILLA | H69: =38/H64 -> 0.05909797823
A70: 2012 | H70: 704
A71: RESTO | H71: =283/H70 -> 0.4019886364
A72: BOGOTA | H72: =245/H70 -> 0.3480113636
A73: MEDELLIN | H73: =74/H70 -> 0.1051136364
A74: CALI | H74: =68/H70 -> 0.09659090909
A75: BARRANQUILLA | H75: =34/H70 -> 0.04829545455

Sheet Ind de Asistencia a Cine en Col
B1: =+[1]a1_ind!AP6 -> Indice de asistencia
A2: =+[1]a1_ind!AM7 -> 1990 | B2: =+[1]a1_ind!AP7 -> 0.7735125398
A3: =+[1]a1_ind!AM8 -> 1991 | B3: =+[1]a1_ind!AP8 -> 0.7235023716
A4: =+[1]a1_ind!AM9 -> 1992 | B4: =+[1]a1_ind!AP9 -> 0.526450032
A5: =+[1]a1_ind!AM10 -> 1993 | B5: =+[1]a1_ind!AP10 -> 0.4860923993
A6: =+[1]a1_ind!AM11 -> 1994 | B6: =+[1]a1_ind!AP11 -> 0.4748479164
A7: =+[1]a1_ind!AM12 -> 1995 | B7: =+[1]a1_ind!AP12 -> 0.4670130783
A8: =+[1]a1_ind!AM13 -> 1996 | B8: =+[1]a1_ind!AP13 -> 0.4741508956
A9: =+[1]a1_ind!AM14 -> 1997 | B9: =+[1]a1_ind!AP14 -> 0.4620080433
A10: =+[1]a1_ind!AM15 -> 1998 | B10: =+[1]a1_ind!AP15 -> 0.4682979394
A11: =+[1]a1_ind!AM16 -> 1999 | B11: =+[1]a1_ind!AP16 -> 0.4024585663
A12: =+[1]a1_ind!AM17 -> 2000 | B12: =+[1]a1_ind!AP17 -> 0.4268460029
A13: =+[1]a1_ind!AM18 -> 2001 | B13: =+[1]a1_ind!AP18 -> 0.4360807605
A14: =+[1]a1_ind!AM19 -> 2002 | B14: =+[1]a1_ind!AP19 -> 0.4451856651
A15: =+[1]a1_ind!AM20 -> 2003 | B15: =+[1]a1_ind!AP20 -> 0.4082777782
A16: =+[1]a1_ind!AM21 -> 2004 | B16: =+[1]a1_ind!AP21 -> 0.404121091
A17: =+[1]a1_ind!AM22 -> 2005 | B17: =+[1]a1_ind!AP22 -> 0.3716606038
A18: =+[1]a1_ind!AM23 -> 2006 | B18: =+[1]a1_ind!AP23 -> 0.4657566809
A19: =+[1]a1_ind!AM24 -> 2007 | B19: =+[1]a1_ind!AP24 -> 0.4705304575
A20: =+[1]a1_ind!AM25 -> 2008 | B20: =+[1]a1_ind!AP25 -> 0.4850915771 | C20: =+B20/B19-1 -> 0.0309461785
A21: =+[1]a1_ind!AM26 -> 2009 | B21: =+[1]a1_ind!AP26 -> 0.6017871918 | C21: =+B21/B20-1 -> 0.240564092
A22: =+[1]a1_ind!AM27 -> 2010 | B22: =+[1]a1_ind!AP27 -> 0.7395165599 | C22: =+B22/B21-1 -> 0.2288672307
A23: 2011 | B23: =+[2]a1_ind!$AP$28 -> 0.8255463654 | C23: =+B23/B22-1 -> 0.1163324937
A24: 2012 | B24: 0.8769061915 | C24: =+B24/B23-1 -> 0.06221313338 | D24: Índice de asistencia a cine en Colombia
A25: 2011 II Sem. | B25: 0.4118624462 | D25: 1996 – 2011*
A26: 2012 II Sem. | B26: 0.4424773586
A27: Variacion | B27: =+B25/B24-1 -> -0.5303232545

Sheet Taquilla en Colombia
B1: =+[1]a1_ind!AH5 -> Taquilla Nominal | D1: =+[1]a1_ind!AJ5 -> Real | E1: =+[1]a1_ind!AK5 -> Real
B2: =+[1]a1_ind!AH6 -> COP | C2: =+[1]a1_ind!AI6 -> USD | D2: =+[1]a1_ind!AJ6 -> COP | E2: =+[1]a1_ind!AK6 -> USD
A3: =+[1]a1_ind!AG7 -> 1990 | B3: =+[1]a1_ind!AH7 -> 11171000000 | C3: 22241468.56 | D3: 1.298664352e+11 | E3: 72396110.33
A4: =+[1]a1_ind!AG8 -> 1991 | B4: =+[1]a1_ind!AH8 -> 14476000000 | C4: 23082105.23 | D4: 1.280220387e+11 | E4: 71367922.13
A5: =+[1]a1_ind!AG9 -> 1992 | B5: =+[1]a1_ind!AH9 -> 14444000000 | C5: 21229131.02 | D5: 1.003720868e+11 | E5: 55954016.55
A6: =+[1]a1_ind!AG10 -> 1993 | B6: =+[1]a1_ind!AH10 -> 20077000000 | C6: 25531996.07 | D6: 1.141365652e+11 | E6: 63627244.03
A7: =+[1]a1_ind!AG11 -> 1994 | B7: =+[1]a1_ind!AH11 -> 28384000000 | C7: 34340745.76 | D7: 1.30274012e+11 | E7: 72623320.48 | H7: Taquilla del mercado cinematográfico en Colombia
A8: =+[1]a1_ind!AG12 -> 1995 | B8: =+[1]a1_ind!AH12 -> 33570000000 | C8: 36773122.87 | D8: 1.270342466e+11 | E8: 70817261.73 | H8: 1996 – Junio 2012
A9: =+[1]a1_ind!AG13 -> 1996 | B9: =+[1]a1_ind!AH13 -> 41994000000 | C9: 40510407.6 | D9: 1.326522735e+11 | E9: 73949120.2
A10: =+[1]a1_ind!AG14 -> 1997 | B10: =+[1]a1_ind!AH14 -> 53690000000 | C10: 47050403.84 | D10: 1.430031929e+11 | E10: 79719404.86
A11: =+[1]a1_ind!AG15 -> 1998 | B11: =+[1]a1_ind!AH15 -> 62392000000 | C11: 43740145.08 | D11: 1.376984385e+11 | E11: 76762185.15 | J11: Taquilla pesos (terminos reales)
A12: =+[1]a1_ind!AG16 -> 1999 | B12: =+[1]a1_ind!AH16 -> 62576000000 | C12: 35621622.72 | D12: 1.255518319e+11 | E12: 69990866.03
A13: =+[1]a1_ind!AG17 -> 2000 | B13: =+[1]a1_ind!AH17 -> 75765000000 | C13: 36287338.82 | D13: 1.382059688e+11 | E13: 77045116
A14: =+[1]a1_ind!AG18 -> 2001 | B14: =+[1]a1_ind!AH18 -> 92216000000 | C14: 40095772.56 | D14: 1.559420357e+11 | E14: 86932368.63
A15: =+[1]a1_ind!AG19 -> 2002 | B15: =+[1]a1_ind!AH19 -> 111482000000 | C15: 44509463.45 | D15: 1.781251167e+11 | E15: 99298680.01 | I15: 1823.725556
A16: =+[1]a1_ind!AG20 -> 2003 | B16: =+[1]a1_ind!AH20 -> 114183000000 | C16: 39680723.02 | D16: 1.693554158e+11 | E16: 94409870.73 | I16: 1795.215556
A17: =+[1]a1_ind!AG21 -> 2004 | B17: =+[1]a1_ind!AH21 -> 127673000000 | C17: 48575003.12 | D17: 1.797086316e+11 | E17: 100181435.6
A18: =+[1]a1_ind!AG22 -> 2005 | B18: =+[1]a1_ind!AH22 -> 121095000000 | C18: 52170672.5 | D18: 1.622586952e+11 | E18: 90453690.93
A19: =+[1]a1_ind!AG23 -> 2006 | B19: =+[1]a1_ind!AH23 -> 138432000000 | C19: 58692569.09 | D19: 1.782953839e+11 | E19: 99393598.17
A20: =+[1]a1_ind!AG24 -> 2007 | B20: =+[1]a1_ind!AH24 -> 148725883903 | C20: 71578163.67 | D20: 1.803225164e+11 | E20: 100523655.5
A21: =+[1]a1_ind!AG25 -> 2008 | B21: =+[1]a1_ind!AH25 -> 159980785142 | C21: 81409461.24 | D21: 1.823248337e+11 | E21: 101639879.1
A22: =+[1]a1_ind!AG26 -> 2009 | B22: =+[1]a1_ind!AH26 -> 198078594887 | C22: 91805129.73 | D22: 2.154585004e+11 | E22: 120110768.7
A23: =+[1]a1_ind!AG27 -> 2010 | B23: =+[1]a1_ind!AH27 -> 258087337650 | C23: 135907149.8 | D23: 2.750318591e+11 | E23: 153320885.2
A24: 2011 | B24: =+[2]a1_ind!$AH$28 -> 294039628303 | C24: 159110631 | D24: 3.041671131e+11 | E24: 169562796.1
A25: 2012 | B25: =+[3]a1_ind!$AH$29 -> 327748599249 | C25: 182272844.6 | D25: 327748599249 | E25: 182272844.6
A26: 2011 II Sem. | B26: =+[3]a1_ind!$AH$30 -> 145352469850 | C26: 78653224.55 | D26: 1.494261901e+11 | E26: 80857598.75
A27: 2012 II Sem. | B27: =+[3]a1_ind!$AH$31 -> 164196320899 | C27: 91315509.98 | D27: 164196320899 | E27: 91315509.98 | H27: Taquilla del mercado cinematográfico en Colombia
H28: 1996 – 2011
A30: 2007 | B30: =148725883903/10^9 -> 148.7258839 | D30: =71578163.6696957/10^6 -> 71.57816367
A31: 2008 | B31: =159980785142/10^9 -> 159.9807851 | C31: =+B31/B30-1 -> 0.07567547049 | D31: =81409461.2422795/10^6 -> 81.40946124 | J31: Taquilla dólares (terminos reales)
A32: 2009 | B32: =198078594887/10^9 -> 198.0785949 | C32: =+B32/B31-1 -> 0.2381399098 | D32: =91805129.7254123/10^6 -> 91.80512973
A33: 2010 | B33: =258087337650/10^9 -> 258.0873376 | C33: =+B33/B32-1 -> 0.3029542026 | D33: =135907149.772446/10^6 -> 135.9071498
A34: 2011 | B34: =294039628303/10^9 -> 294.0396283 | C34: =+B34/B33-1 -> 0.1393028073 | D34: =159110631.001288/10^6 -> 159.110631
A35: 2012 | B35: =B25/10^9 -> 327.7485992 | C35: =+B35/B34-1 -> 0.1146409113 | D35: =C25/10^6 -> 182.2728446 | E35: =+D35/D34-1 -> 0.1455730108
A36: 2011 II Sem. | B36: =B26/10^9 -> 145.3524699 | D36: =C26/10^6 -> 78.65322455
A37: 2012 II Sem. | B37: =B27/10^9 -> 164.1963209 | C37: =+B37/B36-1 -> 0.1296424551 | D37: =C27/10^6 -> 91.31550998
D38: =+D36/D35-1 -> -0.5684863277

Sheet Estrenos de películas Col.
A1: =+[1]a3_ind!X7 -> CIFRA OFICIAL | B1: =+[1]a3_ind!Y7 -> Total estrenos | C1: =+[1]a3_ind!Z7 -> Estrenos colombianos | D1: =+[1]a3_ind!AA7 -> % cine colombiano en total estrenos | J1: Estrenos totales (nacionales + extranjeros)
A2: =+[1]a3_ind!X8 -> 1993 | B2: =+[1]a3_ind!Y8 -> 276
A3: =+[1]a3_ind!X9 -> 1994 | B3: =+[1]a3_ind!Y9 -> 268
A4: =+[1]a3_ind!X10 -> 1995 | B4: =+[1]a3_ind!Y10 -> 250
A5: =+[1]a3_ind!X11 -> 1996 | B5: =+[1]a3_ind!Y11 -> 273 | C5: =+[1]a3_ind!Z11 -> 3 | D5: 1.098901099
A6: =+[1]a3_ind!X12 -> 1997 | B6: =+[1]a3_ind!Y12 -> 252 | C6: =+[1]a3_ind!Z12 -> 1 | D6: 0.3968253968 | F6: Estrenos cinematográficos en Colombia
A7: =+[1]a3_ind!X13 -> 1998 | B7: =+[1]a3_ind!Y13 -> 241 | C7: =+[1]a3_ind!Z13 -> 4 | D7: 1.659751037 | F7: 1996 – 2011
A8: =+[1]a3_ind!X14 -> 1999 | B8: =+[1]a3_ind!Y14 -> 246 | C8: =+[1]a3_ind!Z14 -> 3 | D8: 1.219512195
A9: =+[1]a3_ind!X15 -> 2000 | B9: =+[1]a3_ind!Y15 -> 204 | C9: =+[1]a3_ind!Z15 -> 4 | D9: 1.960784314
A10: =+[1]a3_ind!X16 -> 2001 | B10: =+[1]a3_ind!Y16 -> 203 | C10: =+[1]a3_ind!Z16 -> 7 | D10: 3.448275862
A11: =+[1]a3_ind!X17 -> 2002 | B11: =+[1]a3_ind!Y17 -> 180 | C11: =+[1]a3_ind!Z17 -> 4 | D11: 2.222222222
A12: =+[1]a3_ind!X18 -> 2003 | B12: =+[1]a3_ind!Y18 -> 175 | C12: =+[1]a3_ind!Z18 -> 5 | D12: 2.857142857
A13: =+[1]a3_ind!X19 -> 2004 | B13: =+[1]a3_ind!Y19 -> 167 | C13: =+[1]a3_ind!Z19 -> 8 | D13: 4.790419162
A14: =+[1]a3_ind!X20 -> 2005 | B14: =+[1]a3_ind!Y20 -> 164 | C14: =+[1]a3_ind!Z20 -> 8 | D14: 4.87804878
A15: =+[1]a3_ind!X21 -> 2006 | B15: =+[1]a3_ind!Y21 -> 162 | C15: =+[1]a3_ind!Z21 -> 8 | D15: 4.938271605
A16: =+[1]a3_ind!X22 -> 2007 | B16: =195-6 -> 189 | C16: =+[1]a3_ind!Z22 -> 10 | D16: =+C16/B16*100 -> 5.291005291 | F16: 2 | G16: 8
A17: =+[1]a3_ind!X23 -> 2008 | B17: =222-9 -> 213 | C17: =+[1]a3_ind!Z23 -> 13 | D17: =+C17/B17*100 -> 6.103286385 | E17: =+C17/B17 -> 0.06103286385 | F17: 3 | G17: 10
A18: =+[1]a3_ind!X24 -> 2009 | B18: =223-9 -> 214 | C18: =+[1]a3_ind!Z24 -> 12 | D18: 5.607476636 | F18: 4 | G18: 8
A19: =+[1]a3_ind!X25 -> 2010 | B19: =214-8 -> 206 | C19: =+[1]a3_ind!Z25 -> 10 | D19: 4.854368932 | F19: 5 | G19: 5
A20: 2011 | B20: =215-9 -> 206 | C20: 18 | D20: 8.737864078 | F20: 6 | G20: 12
A21: 2012 | B21: 213 | C21: 23 | D21: =+C21/B21*100 -> 10.79812207 | E21: =+D21/D20-1 -> 0.2357850809 | F21: 8 | G21: =23-8 -> 15
A22: 2011 II sem | B22: 111 | C22: 12 | D22: 10.81081081
A23: 2012 II sem | B23: 111 | C23: 13 | D23: 11.71171171
D24: =+AVERAGE(D10:D20) -> 4.884398346
B26: =360/7 -> 51.42857143
B27: =253/52 -> 4.865384615 | I27: a4 | J27: Estrenos (nacionales)
B29: =101/26 -> 3.884615385
F30: Estreno de películas colombianas
F31: 1996 – Junio 2011
I52: a4_2 | J52: Porcentaje de estrenos colombianos en total de estrenos
F55: Participación de las películas nacionales en el total de estrenos en Colombia
F56: 1996 – 2011

Sheet Asistencia a películas Col.
J1: a5 | K1: Espectadores peliculas colombianas
B2: =+[1]a5_ind!AH2 -> Películas colombianas
B3: =+[1]a5_ind!AH3 -> Espectatores | D3: =+[1]a1_ind!AZ10 -> % cine Colombiano
A4: =+[1]a5_ind!AG4 -> 1996 | B4: =+[1]a5_ind!AH4 -> 987000
A5: =+[1]a5_ind!AG5 -> 1997 | B5: =+[1]a5_ind!AH5 -> 100000
A6: =+[1]a5_ind!AG6 -> 1998 | B6: =+[1]a5_ind!AH6 -> 1422000 | D6: =+[1]a1_ind!AZ13 -> 1996 | G6: Asistencia a películas colombianas
A7: =+[1]a5_ind!AG7 -> 1999 | B7: =+[1]a5_ind!AH7 -> 112000 | D7: =+[1]a1_ind!AZ14 -> 1997 | G7: 1996 – 2011
A8: =+[1]a5_ind!AG8 -> 2000 | B8: =+[1]a5_ind!AH8 -> 618000 | D8: =+[1]a1_ind!AZ15 -> 1998
A9: =+[1]a5_ind!AG9 -> 2001 | B9: =+[1]a5_ind!AH9 -> 84000 | D9: =+[1]a1_ind!AZ16 -> 1999
A10: =+[1]a5_ind!AG10 -> 2002 | B10: =+[1]a5_ind!AH10 -> 854541 | D10: =+[1]a1_ind!AZ17 -> 2000
A11: =+[1]a5_ind!AG11 -> 2003 | B11: =+[1]a5_ind!AH11 -> 577304 | D11: =+[1]a1_ind!AZ18 -> 2001
A12: =+[1]a5_ind!AG12 -> 2004 | B12: =+[1]a5_ind!AH12 -> 944700 | D12: =+[1]a1_ind!AZ19 -> 2002
A13: =+[1]a5_ind!AG13 -> 2005 | B13: =+[1]a5_ind!AH13 -> 1979106 | D13: =+[1]a1_ind!AZ20 -> 2003
A14: =+[1]a5_ind!AG14 -> 2006 | B14: =+[1]a5_ind!AH14 -> 2806892 | D14: =+[1]a1_ind!AZ21 -> 2004
A15: =+[1]a5_ind!AG15 -> 2007 | B15: =+[1]a5_ind!AH15 -> 2387135 | D15: =+[1]a1_ind!AZ22 -> 2005
A16: =+[1]a5_ind!AG16 -> 2008 | B16: =+[1]a5_ind!AH16 -> 2278429 | D16: =+[1]a1_ind!AZ23 -> 2006
A17: =+[1]a5_ind!AG17 -> 2009 | B17: =+[1]a5_ind!AH17 -> 1208280 | D17: =+[1]a1_ind!AZ24 -> 2007
A18: =+[1]a5_ind!AG18 -> 2010 | B18: =+[1]a5_ind!AH18 -> 1530700 | D18: =+[1]a1_ind!AZ25 -> 2008
A19: 2011 | B19: =+[2]a5_ind!$AH$19 -> 2993737 | D19: =+[1]a1_ind!AZ26 -> 2009
A20: 2012 | B20: 3385882 | D20: =+[1]a1_ind!AZ27 -> 2010 | F20: =+B20/B19-1 -> 0.1309884602 | G20: =+B20-B19 -> 392145
A21: 2011 II sem | B21: =+SUM([3]a5_ind!$Y$11:$AD$11) -> 816894 | D21: =+[1]a1_ind!AZ28 -> 2010*
A22: 2012 II sem | B22: =+B20-1620000 -> 1765882 | D22: =+[1]a1_ind!AZ29 -> 2011* | F22: =+B22/B21-1 -> 1.161702742
B24: Asistencia record en Taquilla de peliculas colombianas
A28: 2007 | C28: 512832 | D28: 74514 | E28: 140730 | F28: 265856 | G28: 92753 | H28: 382045 | J28: 96585 | K28: 338168 | L28: 113412 | M28: 69726 | N28: 103879 | O28: 196635
A29: 2008 | C29: 859133 | D29: 412189 | E29: 125989 | F29: 218662 | G29: 149003 | H29: 1037 | J29: 74463 | K29: 99118 | L29: 100304 | M29: 107786 | N29: 33170 | O29: 97575
A30: 2009 | C30: 157529 | D30: 9773 | E30: 8672 | F30: 236917 | G30: 199497 | H30: 41345 | J30: 5492 | K30: 178582 | L30: 41975 | M30: 70314 | N30: 90011 | O30: 168173
A31: 2010 | C31: 403547 | D31: 165175 | E31: 56428 | F31: 77626 | G31: 42928 | H31: 21619 | J31: 664 | K31: 43967 | L31: 260457 | M31: 121227 | N31: 24123 | O31: 312939
A32: 2011 | C32: 1240240 | D32: 261722 | E32: 262898 | F32: 210069 | G32: 191090 | H32: 10824 | J32: 36339 | K32: 120104 | L32: 57657 | M32: 298259 | N32: 74498 | O32: 230037
A33: 2012 | C33: 526809 | D33: 347256 | E33: 49814 | F33: 159497 | G33: 29521 | H33: 506962
A34: Espectadores de películas colombianas por semestre
B37: 1er semestre | C37: 2do semestres | D37: total año | E37: % espectadores primer semestre | F37: % espectadores segundo semestre
A38: 2007 | B38: =1468730/10^3 -> 1468.73 | C38: =918405/10^3 -> 918.405 | D38: =2387135/10^3 -> 2387.135 | E38: 61.5 | F38: 38.47
A39: 2008 | B39: =1766013/10^3 -> 1766.013 | C39: =512416/10^3 -> 512.416 | D39: =2278429/10^3 -> 2278.429 | E39: 77.5 | F39: 22.48
A40: 2009 | B40: =653733/10^3 -> 653.733 | C40: =554547/10^3 -> 554.547 | D40: =1208280/10^3 -> 1208.28 | E40: 54.1 | F40: 45.89
A41: 2010 | B41: =767323/10^3 -> 767.323 | C41: =763377/10^3 -> 763.377 | D41: =1530700/10^3 -> 1530.7 | E41: 50.12 | F41: 49.87
A42: 2011 | B42: =2176843/10^3 -> 2176.843 | C42: =816894/10^3 -> 816.894 | D42: =2993737/10^3 -> 2993.737 | E42: 72.71 | F42: 27.28
A43: 2012 | B43: =+SUM([3]a5_ind!$S$12:$X$12)/10^3 -> 1619.859 | C43: 1765 | D43: 3385.88 | E43: 47.84 | F43: 52.13
D46: =D43*1000 -> 3385880

Sheet 5 más taquilleras en Colombia
E1: =+[1]a12_ind!L9 -> TAQUILLA | H1: =+[1]a12_ind!Q9 ->  | K1: Año | L1: Posición | M1: Título | N1: Espectadores | O1: Taquilla | Q1: Year | R1: Ranking | S1: Tittle | T1: Admissions | U1: Box Offioce
A2: =+[1]a12_ind!H10 -> AÑO | B2: =+[1]a12_ind!I10 -> RANKING | C2: =+[1]a12_ind!J10 -> PELICULA | D2: =+[1]a12_ind!K10 -> ESPECTADORES | E2: =+[1]a12_ind!L10 -> Millones corrientes | F2: =+[1]a12_ind!M10 -> COP Constantes | H2: =+[1]a12_ind!Q10 -> SI ES COLOMBIANA 1 | K2: Año | M2: Película | O2: Millones de pesos | Q2: Año | S2: Película | U2: US Million Dollars
A3: =+[1]a12_ind!H11 -> 2007 | B3: =+[1]a12_ind!I11 -> 1 | C3: =+[1]a12_ind!J11 -> SHREK 3 | D3: =+[1]a12_ind!K11 -> 1102298 | E3: =+[1]a12_ind!L11 -> 7742.675624 | F3: 9106.566115 | H3: =+[1]a12_ind!Q11 -> 0 | K3: 2012 | L3: 1 | M3: Ice age 4: continental drift - 3d | N3: 2955337 | O3: 25219.77695 | Q3: 2012 | R3: 1 | S3: Ice age 4: continental drift - 3d | T3: 2955337 | U3: 14.02562969
A4: =+[1]a12_ind!H12 ->  | B4: =+[1]a12_ind!I12 -> 2 | C4: =+[1]a12_ind!J12 -> SPIDER MAN 3 | D4: =+[1]a12_ind!K12 -> 1043491 | E4: =+[1]a12_ind!L12 -> 7407.0584 | F4: 8711.829129 | H4: =+[1]a12_ind!Q12 -> 0 | L4: 2 | M4: The avengers 3d | N4: 2240703 | O4: 20236.9216 | R4: 2 | S4: The avengers 3d | T4: 2240703 | U4: 11.25448369
A5: =+[1]a12_ind!H13 ->  | B5: =+[1]a12_ind!I13 -> 3 | C5: =+[1]a12_ind!J13 -> THE SIMPSON MOVIE | D5: =+[1]a12_ind!K13 -> 1015204 | E5: =+[1]a12_ind!L13 -> 7204.179981 | F5: 8473.2132 | H5: =+[1]a12_ind!Q13 -> 0 | L5: 3 | M5: Madagascar 3 3d | N5: 1779337 | O5: 15023.343 | R5: 3 | S5: Madagascar 3 3d | T5: 1779337 | U5: 8.355024157
A6: =+[1]a12_ind!H14 ->  | B6: =+[1]a12_ind!I14 -> 4 | C6: =+[1]a12_ind!J14 -> A NIGHT AT THE MUSEUM | D6: =+[1]a12_ind!K14 -> 884838 | E6: =+[1]a12_ind!L14 -> 6298.0568 | F6: 7407.474293 | H6: =+[1]a12_ind!Q14 -> 0 | L6: 4 | M6: The dark knight rises | N6: 1791146 | O6: 13103.6885 | R6: 4 | S6: The dark knight rises | T6: 1791146 | U6: 7.287434892
A7: =+[1]a12_ind!H15 ->  | B7: =+[1]a12_ind!I15 -> 5 | C7: =+[1]a12_ind!J15 -> PIRATES OF THE CARIBBEAN 3 | D7: =+[1]a12_ind!K15 -> 833621 | E7: =+[1]a12_ind!L15 -> 5986.207275 | F7: 7040.691742 | H7: =+[1]a12_ind!Q15 -> 0 | L7: 5 | M7: The twilight saga breaking dawn 2 | N7: 1707939 | O7: 9557.03385 | R7: 5 | S7: The twilight saga breaking dawn 2 | T7: 1707939 | U7: 5.315012024
A8: =+[1]a12_ind!H16 -> 2008 | B8: =+[1]a12_ind!I16 -> 1 | C8: =+[1]a12_ind!J16 -> PARAISO TRAVEL | D8: =+[1]a12_ind!K16 -> 931245 | E8: =+[1]a12_ind!L16 -> 7285.578347 | F8: 7954.423125 | H8: =+[1]a12_ind!Q16 -> 1 | K8: 2011 | L8: 1 | M8: Smurfs - 3D | N8: 1894025 | O8: 15709.21225 | Q8: 2011 | R8: 1 | S8: Smurfs - 3D | T8: 1894025 | U8: 8.981313218
A9: =+[1]a12_ind!H17 ->  | B9: =+[1]a12_ind!I17 -> 2 | C9: =+[1]a12_ind!J17 -> THE DARK KNIGHT | D9: =+[1]a12_ind!K17 -> 944789 | E9: =+[1]a12_ind!L17 -> 7093.413195 | F9: 7744.616455 | H9: =+[1]a12_ind!Q17 -> 0 | L9: 2 | M9: Rio - 3D | N9: 1723805 | O9: 15004.49704 | R9: 2 | S9: Rio - 3D | T9: 1723805 | U9: 8.578411539
A10: =+[1]a12_ind!H18 ->  | B10: =+[1]a12_ind!I18 -> 3 | C10: =+[1]a12_ind!J18 -> KUNG FU PANDA | D10: =+[1]a12_ind!K18 -> 827091 | E10: =+[1]a12_ind!L18 -> 5764.034869 | F10: 6293.195965 | H10: =+[1]a12_ind!Q18 -> 0 | L10: 3 | M10: Pirates of caribbean on stranger tides - 3D | N10: 1409495 | O10: 12592.76192 | R10: 3 | S10: Pirates of caribbean on stranger tides - 3D | T10: 1409495 | U10: 7.199567828
A11: =+[1]a12_ind!H19 ->  | B11: =+[1]a12_ind!I19 -> 4 | C11: =+[1]a12_ind!J19 -> WALL-E | D11: =+[1]a12_ind!K19 -> 818733 | E11: =+[1]a12_ind!L19 -> 5736.333739 | F11: 6262.951762 | H11: =+[1]a12_ind!Q19 -> 0 | L11: 4 | M11: Transformers 3 - 3D | N11: 1326835 | O11: 11574.2591 | R11: 4 | S11: Transformers 3 - 3D | T11: 1326835 | U11: 6.617266645
A12: =+[1]a12_ind!H20 ->  | B12: =+[1]a12_ind!I20 -> 5 | C12: =+[1]a12_ind!J20 -> MADAGASCAR 2 | D12: =+[1]a12_ind!K20 -> 765749 | E12: =+[1]a12_ind!L20 -> 5376.95001 | F12: 5870.575192 | H12: =+[1]a12_ind!Q20 -> 0 | L12: 5 | M12: Puss in Boots - 3D | N12: 1286154 | O12: 11004.6362 | R12: 5 | S12: Puss in Boots - 3D | T12: 1286154 | U12: 6.291600304
A13: =+[1]a12_ind!H21 -> 2009 | B13: =+[1]a12_ind!I21 -> 1 | C13: =+[1]a12_ind!J21 -> ICE AGE 3 | D13: =+[1]a12_ind!K21 -> 2035362 | E13: =+[1]a12_ind!L21 -> 16088.90744 | F13: 17159.18601 | H13: =+[1]a12_ind!Q21 -> 0 | K13: 2010 | L13: 1 | M13: Toy Story 3 - 3D | N13: 2156531 | O13: 20073.3387 | Q13: 2010 | R13: 1 | S13: Toy Story 3 - 3D | T13: 2156531 | U13: 11.47638337
A14: =+[1]a12_ind!H22 ->  | B14: =+[1]a12_ind!I22 -> 2 | C14: =+[1]a12_ind!J22 -> UP | D14: =+[1]a12_ind!K22 -> 1222254 | E14: =+[1]a12_ind!L22 -> 10267.44598 | F14: 10950.46486 | H14: =+[1]a12_ind!Q22 -> 0 | L14: 2 | M14: Avatar | N14: 1838589 | O14: 19840.27147 | R14: 2 | S14: Avatar | T14: 1838589 | U14: 11.34313354
A15: =+[1]a12_ind!H23 ->  | B15: =+[1]a12_ind!I23 -> 3 | C15: =+[1]a12_ind!J23 -> 2012 | D15: =+[1]a12_ind!K23 -> 1335566 | E15: =+[1]a12_ind!L23 -> 8249.166182 | F15: 8797.923508 | H15: =+[1]a12_ind!Q23 -> 0 | L15: 3 | M15: Alice in wonderland | N15: 1517848 | O15: 13879.35396 | R15: 3 | S15: Alice in wonderland | T15: 1517848 | U15: 7.935141696
A16: =+[1]a12_ind!H24 ->  | B16: =+[1]a12_ind!I24 -> 4 | C16: =+[1]a12_ind!J24 -> AVATAR | D16: =+[1]a12_ind!K24 -> 921576 | E16: =+[1]a12_ind!L24 -> 7776.031849 | F16: 8293.314972 | H16: =+[1]a12_ind!Q24 -> 0 | L16: 4 | M16: Shrek forever after - 3D | N16: 1392201 | O16: 12790.51262 | R16: 4 | S16: Shrek forever after - 3D | T16: 1392201 | U16: 7.312626389
A17: =+[1]a12_ind!H25 ->  | B17: =+[1]a12_ind!I25 -> 5 | C17: =+[1]a12_ind!J25 -> ANGELS & DEMONS | D17: =+[1]a12_ind!K25 -> 824141 | E17: =+[1]a12_ind!L25 -> 6004.15021 | F17: 6403.562871 | H17: =+[1]a12_ind!Q25 -> 0 | L17: 5 | M17: Clash of the titans -3D | N17: 1198732 | O17: 11472.32916 | R17: 5 | S17: Clash of the titans -3D | T17: 1198732 | U17: 6.558990985
A18: =+[1]a12_ind!H26 -> 2010 | B18: =+[1]a12_ind!I26 -> 1 | C18: =+[1]a12_ind!J26 -> TOY STORY 3 3D | D18: =+[1]a12_ind!K26 -> 2156531 | E18: =+[1]a12_ind!L26 -> 19308.81595 | F18: 20073.3387 | H18: =+[1]a12_ind!Q26 -> 0 | K18: 2009 | L18: 1 | M18: Ice age 3 | N18: 2035362 | O18: 17159.18601 | Q18: 2009 | R18: 1 | S18: Ice age 3 | T18: 2035362 | U18: 9.810296131
A19: =+[1]a12_ind!H27 ->  | B19: =+[1]a12_ind!I27 -> 2 | C19: =+[1]a12_ind!J27 -> AVATAR | D19: =+[1]a12_ind!K27 -> 1838589 | E19: =+[1]a12_ind!L27 -> 19084.62544 | F19: 19840.27147 | H19: =+[1]a12_ind!Q27 -> 0 | L19: 2 | M19: Up | N19: 1222254 | O19: 10950.46486 | R19: 2 | S19: Up | T19: 1222254 | U19: 6.260629318
A20: =+[1]a12_ind!H28 ->  | B20: =+[1]a12_ind!I28 -> 3 | C20: =+[1]a12_ind!J28 -> ALICE IN WONDERLAND | D20: =+[1]a12_ind!K28 -> 1517848 | E20: =+[1]a12_ind!L28 -> 13350.73827 | F20: 13879.35396 | H20: =+[1]a12_ind!Q28 -> 0 | L20: 3 | M20: 2012 | N20: 1335566 | O20: 8797.923508 | R20: 3 | S20: 2012 | T20: 1335566 | U20: 5.029972569
A21: =+[1]a12_ind!H29 ->  | B21: =+[1]a12_ind!I29 -> 4 | C21: =+[1]a12_ind!J29 -> SHREK FOREVER AFTER 3D | D21: =+[1]a12_ind!K29 -> 1392201 | E21: =+[1]a12_ind!L29 -> 12303.36706 | F21: 12790.51262 | H21: =+[1]a12_ind!Q29 -> 0 | L21: 4 | M21: Avatar | N21: 921576 | O21: 8293.314972 | R21: 4 | S21: Avatar | T21: 921576 | U21: 4.741476415
A22: =+[1]a12_ind!H30 ->  | B22: =+[1]a12_ind!I30 -> 5 | C22: =+[1]a12_ind!J30 -> CLASH OF THE TITANS 3D | D22: =+[1]a12_ind!K30 -> 1198732 | E22: =+[1]a12_ind!L30 -> 11035.38856 | F22: 11472.32916 | H22: =+[1]a12_ind!Q30 -> 0 | L22: 5 | M22: Angels & demons | N22: 824141 | O22: 6403.562871 | R22: 5 | S22: Angels & demons | T22: 824141 | U22: 3.661062244
A23: 2011 | B23: =+[1]a12_ind!I31 -> 1 | C23: SMURFS - 3D | D23: 1894025 | E23: =15709212250/1000000 -> 15709.21225 | F23: 15709.21225 | H23: =+[1]a12_ind!Q31 -> 0 | K23: 2008 | L23: 1 | M23: Paraíso travel | N23: 931245 | O23: 7954.423125 | Q23: 2008 | R23: 1 | S23: Paraíso travel | T23: 931245 | U23: 4.547724253
A24: =+[1]a12_ind!H32 ->  | B24: =+[1]a12_ind!I32 -> 2 | C24: RIO 3D | D24: 1723805 | E24: =15004497044/1000000 -> 15004.49704 | F24: 15004.49704 | H24: =+[1]a12_ind!Q32 -> 0 | L24: 2 | M24: The dark knight | N24: 944789 | O24: 7744.616455 | R24: 2 | S24: The dark knight | T24: 944789 | U24: 4.427773018
A25: =+[1]a12_ind!H33 ->  | B25: =+[1]a12_ind!I33 -> 3 | C25: PIRATES OF CARIBBEAN ON STRANGER TIDES3D | D25: 1409495 | E25: =12592761924/1000000 -> 12592.76192 | F25: 12592.76192 | H25: =+[1]a12_ind!Q33 -> 0 | L25: 3 | M25: Kung fu panda | N25: 827091 | O25: 6293.195965 | R25: 3 | S25: Kung fu panda | T25: 827091 | U25: 3.597962979
A26: =+[1]a12_ind!H34 ->  | B26: =+[1]a12_ind!I34 -> 4 | C26: TRANSFORMERS 3 3D | D26: 1326835 | E26: =11574259100/1000000 -> 11574.2591 | F26: 11574.2591 | H26: =+[1]a12_ind!Q34 -> 0 | L26: 4 | M26: Wall-e | N26: 818733 | O26: 6262.951762 | R26: 4 | S26: Wall-e | T26: 818733 | U26: 3.580671682
A27: =+[1]a12_ind!H35 ->  | B27: =+[1]a12_ind!I35 -> 5 | C27: PUSS IN BOOTS 3D | D27: 1286154 | E27: =11004636200/1000000 -> 11004.6362 | F27: 11004.6362 | H27: 0 | L27: 5 | M27: Madagascar 2 | N27: 765749 | O27: 5870.575192 | R27: 5 | S27: Madagascar 2 | T27: 765749 | U27: 3.35634109
K28: 2007 | L28: 1 | M28: Shrek 3 | N28: 1102298 | O28: 9106.566115 | Q28: 2007 | R28: 1 | S28: Shrek 3 | T28: 1102298 | U28: 5.206430553
L29: 2 | M29: Spider man 3 | N29: 1043491 | O29: 8711.829129 | R29: 2 | S29: Spider man 3 | T29: 1043491 | U29: 4.980750458
L30: 3 | M30: The simpson movie | N30: 1015204 | O30: 8473.2132 | R30: 3 | S30: The simpson movie | T30: 1015204 | U30: 4.844328315
E31: Las cinco películas más taquilleras por año en Colombia | L31: 4 | M31: A night at the museum | N31: 884838 | O31: 7407.474293 | R31: 4 | S31: A night at the museum | T31: 884838 | U31: 4.235021191
L32: 5 | M32: Pirates of the caribbean 3 | N32: 833621 | O32: 7040.691742 | R32: 5 | S32: Pirates of the caribbean 3 | T32: 833621 | U32: 4.025323282
K33: Year | L33: Ranking | M33: Tittle | N33: Attendance | O33: Box Offioce
K34: Año | M34: Película | O34: US Million Dollars

Sheet Asistencia y taquilla por exhib
A1: Año | B1: Exhibidor
B2: CINE COLOMBIA | D2: CINEMARK | F2: PROCINAL | H2: ROYAL FILMS LTDA | J2: OTHERS (44 CITIES) | L2: CINEPOLIS | N2: TOTAL
B3: Taquilla | C3: Espectadores | D3: Taquilla | E3: Espectadores | F3: Taquilla | G3: Espectadores | H3: Taquilla | I3: Espectadores | J3: Taquilla | K3: Espectadores | L3: Taquilla | M3: Espectadores | N3: Taquilla | O3: Espectadores
A4: 2007 | B4: 0.5927270978 | C4: 0.5675869547 | D4: 0.1886427215 | E4: 0.1850516555 | F4: 0.1147232414 | G4: 0.1218792057 | H4: 0.07996045041 | I4: 0.0927666295 | J4: 0.02394648886 | K4: 0.03271555456 | N4: 148692334003 | O4: 20668456
A5: 2008 | B5: 0.5567077055 | C5: 0.544048581 | D5: 0.1982056074 | E5: 0.1908134707 | F5: 0.1089412725 | G5: 0.1238629835 | H5: 0.09443517755 | I5: 0.1087878636 | J5: 0.0302059897 | K5: 0.03489403753 | L5: 0.01150424731 | M5: 0.01020091147 | N5: 159968327392 | O5: 21562681
A6: 2009 | B6: 0.527265533 | C6: 0.4454201015 | D6: 0.1967816057 | E6: 0.1948406375 | F6: 0.1260047026 | G6: 0.1926637982 | H6: 0.05974035156 | I6: 0.06096014491 | J6: 0.07068443101 | K6: 0.08969341117 | L6: 0.0195233762 | M6: 0.01642190679 | N6: 198078594887 | O6: 27067685
A7: 2010 | B7: 0.5154527194 | C7: 0.4520645156 | D7: 0.1833713012 | E7: 0.1874425513 | F7: 0.124559318 | G7: 0.1626471544 | H7: 0.09667106535 | I7: 0.1186491044 | J7: 0.05042123721 | K7: 0.05249104317 | L7: 0.02952435879 | M7: 0.02670563102 | N7: 258084794650 | O7: 33655037
A8: 2011 | B8: 0.4802080748 | C8: 0.4546904735 | D8: 0.1946675717 | E8: 0.1796857257 | F8: 0.1335918602 | G8: 0.1618528604 | H8: 0.09399580533 | I8: 0.1058942752 | J8: 0.04538318117 | K8: 0.05076466609 | L8: 0.05215350688 | M8: 0.04711199907 | N8: 294039452303 | O8: 38011951
A9: 2012 | B9: 0.4784751055 | C9: 0.4589776989 | D9: 0.187210655 | E9: 0.1700990899 | F9: 0.1295273421 | G9: 0.1507138427 | H9: 0.02600649151 | I9: 0.03048452934 | J9: 0.1148537354 | K9: 0.1307137531 | L9: 0.06392667041 | M9: 0.05901108618 | N9: 327747679749 | O9: 40847867
E13: 1840315200 | F13: 219959
E14: 3867162925 | F14: 444503
E15: 7619788075 | F15: 898779
E16: 15335188600 | F16: 1790819
E17: =20951817900 -> 20951817900 | F17: =2410477 -> 2410477

Sheet 5 más taquilleras Colombianas
I1: Las cinco películas colombianas más taquilleras por año
A2: Año | B2: =+[1]a13_ind!O9 -> PELICULA | C2: =+[1]a13_ind!P9 -> POSICIÓN EN RANKING GENERAL | D2: =+[1]a13_ind!Q9 -> ESPECTADORES | E2: =+[1]a13_ind!R9 -> TAQUILLA | J2: Año | K2: Ranking | L2: Película | M2: Posición en Ranking general | O2: Espectadores | R2: Year | S2: Ranking | T2: Film | U2: Position in General Ranking | W2: Attendance
E3: =+[1]a13_ind!R10 -> MILLONES COP | F3: =+[1]a13_ind!S10 -> MILES USD | G3: =+[1]a13_ind!T10 ->  | P3: $ Milones Constantes | X3: $ US Million dollars
A4: =+[1]a13_ind!N11 -> 2007 | B4: =+[1]a13_ind!O11 -> BLUFF | C4: =+[1]a13_ind!P11 -> 9 | D4: =+[1]a13_ind!Q11 -> 492947 | E4: =+[1]a13_ind!R11 -> 3809.04065 | F4: =+[1]a13_ind!S11 -> 1833.198956 | G4: =+[1]a13_ind!T11 ->  | J4: 2012 | K4: 1 | L4: Mi gente linda mi gente bella | M4: 18 | N4: Total de estrenos 213 | O4: 613557 | P4: 4154 | R4: 2012 | S4: 1 | T4: Mi gente linda mi gente bella | U4: 18 | V4: Releases 213 | W4: 613557 | X4: 2.394724576
A5: =+[1]a13_ind!N12 ->  | B5: =+[1]a13_ind!O12 -> SATANAS | C5: =+[1]a13_ind!P12 -> 11 | D5: =+[1]a13_ind!Q12 -> 465408 | E5: =+[1]a13_ind!R12 -> 3510.608107 | F5: =+[1]a13_ind!S12 -> 1689.570605 | G5: =+[1]a13_ind!T12 ->  | K5: 2 | L5: La Cara oculta | M5: 27 | O5: 612459 | P5: 4310 | S5: 2 | T5: La cara oculta | U5: 27 | W5: 612459 | X5: 1.870256212
A6: =+[1]a13_ind!N13 ->  | B6: =+[1]a13_ind!O13 -> ESTO HUELE MAL | C6: =+[1]a13_ind!P13 -> 12 | D6: =+[1]a13_ind!Q13 -> 423363 | E6: =+[1]a13_ind!R13 -> 3238.388153 | F6: =+[1]a13_ind!S13 -> 1558.557738 | G6: =+[1]a13_ind!T13 ->  | K6: 3 | L6: El paseo 2 | M6: 29 | O6: 478993 | P6: 2222.2777 | S6: 3 | T6: El paseo 2 | U6: 29 | W6: 478993 | X6: 1.834077182
A7: =+[1]a13_ind!N14 ->  | B7: =+[1]a13_ind!O14 -> LAS CARTAS DEL GORDO | C7: =+[1]a13_ind!P14 -> 20 | D7: =+[1]a13_ind!Q14 -> 294338 | E7: =+[1]a13_ind!R14 -> 2095.83814 | F7: =+[1]a13_ind!S14 -> 1008.676106 | G7: =+[1]a13_ind!T14 ->  | K7: 4 | L7: El cartel de los sapos | M7: 40 | O7: 446789 | P7: 3262 | S7: 4 | T7: El cartel de los sapos | U7: 40 | W7: 446789 | X7: 1.306861563
A8: =+[1]a13_ind!N15 ->  | B8: =+[1]a13_ind!O15 -> MUERTOS DE SUSTO | C8: =+[1]a13_ind!P15 -> 28 | D8: =+[1]a13_ind!Q15 -> 196196 | E8: =+[1]a13_ind!R15 -> 1502.81898 | F8: =+[1]a13_ind!S15 -> 723.2703555 | G8: =+[1]a13_ind!T15 ->  | K8: 5 | L8: Sanandresito | M8: 44 | O8: 302878 | P8: 2222 | S8: 5 | T8: Sanandresito | U8: 44 | W8: 302878 | X8: 1.202520378
A9: =+[1]a13_ind!N16 -> 2008 | B9: =+[1]a13_ind!O16 -> PARAISO TRAVEL | C9: =+[1]a13_ind!P16 -> 1 | D9: =+[1]a13_ind!Q16 -> 931245 | E9: =+[1]a13_ind!R16 -> 7285.578347 | F9: =+[1]a13_ind!S16 -> 3707.414034 | G9: =+[1]a13_ind!T16 ->  | J9: 2011 | K9: 1 | L9: El paseo | M9: 7 | N9: Total de estrenos 206 | O9: 1189607 | P9: =7949123666/1000000 -> 7949.123666 | R9: 2011 | S9: 1 | T9: El paseo | U9: 7 | V9: Releases 206 | W9: 1189607 | X9: 4.301435052
A10: =+[1]a13_ind!N17 ->  | B10: =+[1]a13_ind!O17 -> MUERTOS DE SUSTO | C10: =+[1]a13_ind!P17 -> 13 | D10: =+[1]a13_ind!Q17 -> 471444 | E10: =+[1]a13_ind!R17 -> 3520.060031 | F10: =+[1]a13_ind!S17 -> 1791.253808 | G10: =+[1]a13_ind!T17 ->  | K10: 2 | L10: Los colores de la montaña | M10: 25 | O10: 378177 | P10: =2783148250/1000000 -> 2783.14825 | S10: 2 | T10: Los colores de la montaña | U10: 25 | W10: 378177 | X10: 1.505923242
A11: =+[1]a13_ind!N18 ->  | B11: =+[1]a13_ind!O18 -> PERRO COME PERRO | C11: =+[1]a13_ind!P18 -> 23 | D11: =+[1]a13_ind!Q18 -> 295681 | E11: =+[1]a13_ind!R18 -> 2328.623845 | F11: =+[1]a13_ind!S18 -> 1184.967385 | G11: =+[1]a13_ind!T18 ->  | K11: 3 | L11: El jefe | M11: 31 | O11: 318441 | P11: =2175272566/1000000 -> 2175.272566 | S11: 3 | T11: El jefe | U11: 31 | W11: 318441 | X11: 1.177084929
A12: =+[1]a13_ind!N19 ->  | B12: =+[1]a13_ind!O19 -> LA MILAGROSA | C12: =+[1]a13_ind!P19 -> 32 | D12: =+[1]a13_ind!Q19 -> 181000 | E12: =+[1]a13_ind!R19 -> 1364.628951 | F12: =+[1]a13_ind!S19 -> 694.4190679 | G12: =+[1]a13_ind!T19 ->  | K12: 4 | L12: El paramo | M12: 29 | O12: 325709 | P12: =2174218150/1000000 -> 2174.21815 | S12: 4 | T12: El paramo | U12: 29 | W12: 325709 | X12: 0.6545470513
A13: =+[1]a13_ind!N20 ->  | B13: =+[1]a13_ind!O20 -> LOS ACTORES DEL CONFLICTO | C13: =+[1]a13_ind!P20 -> 58 | D13: =+[1]a13_ind!Q20 -> 90560 | E13: =+[1]a13_ind!R20 -> 652.491477 | F13: =+[1]a13_ind!S20 -> 332.0334974 | G13: =+[1]a13_ind!T20 ->  | K13: 5 | L13: En coma | M13: 54 | O13: 175588 | P13: =1218870860/1000000 -> 1218.87086 | S13: 5 | T13: En coma | U13: 54 | W13: 175588 | X13: 0.3331288884
A14: =+[1]a13_ind!N21 -> 2009 | B14: =+[1]a13_ind!O21 -> EL ARRIERO | C14: =+[1]a13_ind!P21 -> 25 | D14: =+[1]a13_ind!Q21 -> 285814 | E14: =+[1]a13_ind!R21 -> 2035.071841 | F14: =+[1]a13_ind!S21 -> 943.2116301 | G14: =+[1]a13_ind!T21 ->  | J14: 2010 | K14: 1 | L14: Infraganti | M14: 23 | N14: Total de estrenos 206 | O14: 463329 | P14: 2962.222038 | R14: 2010 | S14: 1 | T14: Infraganti | U14: 23 | V14: Releases 206 | W14: 463329 | X14: 1.511023337
A15: =+[1]a13_ind!N22 ->  | B15: =+[1]a13_ind!O22 -> LA PASION DE GABRIEL | C15: =+[1]a13_ind!P22 -> 33 | D15: =+[1]a13_ind!Q22 -> 220204 | E15: =+[1]a13_ind!R22 -> 1633.359562 | F15: =+[1]a13_ind!S22 -> 757.0267073 | G15: =+[1]a13_ind!T22 ->  | K15: 2 | L15: Sin tetas no hay paraíso | M15: 33 | O15: 328817 | P15: 2218.948 | S15: 2 | T15: Sin tetas no hay paraíso | U15: 33 | W15: 328817 | X15: 1.131880788
A16: =+[1]a13_ind!N23 ->  | B16: =+[1]a13_ind!O23 -> LOS VIAJES DEL VIENTO | C16: =+[1]a13_ind!P23 -> 42 | D16: =+[1]a13_ind!Q23 -> 162126 | E16: =+[1]a13_ind!R23 -> 1153.356544 | F16: =+[1]a13_ind!S23 -> 534.5557262 | G16: =+[1]a13_ind!T23 ->  | K16: 3 | L16: El paseo | M16: 34 | O16: 312199 | P16: 2177.101872 | S16: 3 | T16: El paseo | U16: 34 | W16: 312199 | X16: 1.110535164
A17: =+[1]a13_ind!N24 ->  | B17: =+[1]a13_ind!O24 -> NI TE CASES NI TE EMBARQUES | C17: =+[1]a13_ind!P24 -> 51 | D17: =+[1]a13_ind!Q24 -> 121975 | E17: =+[1]a13_ind!R24 -> 934.674208 | F17: =+[1]a13_ind!S24 -> 433.2012097 | G17: =+[1]a13_ind!T24 ->  | K17: 4 | L17: Chance | M17: 70 | O17: 117393 | P17: 670.1440131 | S17: 4 | T17: Chance | U17: 70 | W17: 117393 | X17: 0.3418390756
A18: =+[1]a13_ind!N25 ->  | B18: =+[1]a13_ind!O25 -> INFRAGANTI | C18: =+[1]a13_ind!P25 -> 55 | D18: =+[1]a13_ind!Q25 -> 132777 | E18: =+[1]a13_ind!R25 -> 867.715625 | F18: =+[1]a13_ind!S25 -> 402.1673597 | G18: =+[1]a13_ind!T25 ->  | K18: 5 | L18: Del amor y otros demonios | M18: 72 | O18: 76665 | P18: 635.0988632 | S18: 5 | T18: Del amor y otros demonios | U18: 72 | W18: 76665 | X18: 0.3239626171
A19: =+[1]a13_ind!N26 -> 2010 | B19: =+[1]a13_ind!O26 -> INFRAGANTI | C19: =+[1]a13_ind!P26 -> 23 | D19: =+[1]a13_ind!Q26 -> 463329 | E19: =+[1]a13_ind!R26 -> 2869.42954 | F19: =+[1]a13_ind!S26 -> 1511.023337 | G19: =+[1]a13_ind!T26 ->  | J19: 2009 | K19: 1 | L19: El arriero | M19: 25 | N19: Total de estrenos 214 | O19: 285814 | P19: 2148.153509 | R19: 2009 | S19: 1 | T19: El arriero | U19: 25 | V19: Realeses 214 | W19: 285814 | X19: 0.9432116301
A20: =+[1]a13_ind!N27 ->  | B20: =+[1]a13_ind!O27 -> SIN TETAS NO HAY PARAISO | C20: =+[1]a13_ind!P27 -> 33 | D20: =+[1]a13_ind!Q27 -> 328817 | E20: =+[1]a13_ind!R27 -> 2149.438786 | F20: =+[1]a13_ind!S27 -> 1131.880788 | G20: =+[1]a13_ind!T27 ->  | K20: 2 | L20: La pasión de Gabriel | M20: 33 | O20: 220204 | P20: 1724.119514 | S20: 2 | T20: La pasión de Gabriel | U20: 33 | W20: 220204 | X20: 0.7570267073
A21: =+[1]a13_ind!N28 ->  | B21: =+[1]a13_ind!O28 -> EL PASEO | C21: =+[1]a13_ind!P28 -> 34 | D21: =+[1]a13_ind!Q28 -> 312199 | E21: =+[1]a13_ind!R28 -> 2108.9035 | F21: =+[1]a13_ind!S28 -> 1110.535164 | G21: =+[1]a13_ind!T28 ->  | K21: 3 | L21: Los viajes del viento | M21: 42 | O21: 162126 | P21: 1217.444444 | S21: 3 | T21: Los viajes del viento | U21: 42 | W21: 162126 | X21: 0.5345557262
A22: =+[1]a13_ind!N29 ->  | B22: =+[1]a13_ind!O29 -> CHANCE | C22: =+[1]a13_ind!P29 -> 70 | D22: =+[1]a13_ind!Q29 -> 117393 | E22: =+[1]a13_ind!R29 -> 649.15155 | F22: =+[1]a13_ind!S29 -> 341.8390756 | G22: =+[1]a13_ind!T29 ->  | K22: 4 | L22: Ni te cases ni te embarques | M22: 51 | O22: 121975 | P22: 986.6107126 | S22: 4 | T22: Ni te cases ni te embarques | U22: 51 | W22: 121975 | X22: 0.4332012097
A23: =+[1]a13_ind!N30 ->  | B23: =+[1]a13_ind!O30 -> DEL AMOR Y OTROS DEMONIOS | C23: =+[1]a13_ind!P30 -> 72 | D23: =+[1]a13_ind!Q30 -> 76665 | E23: =+[1]a13_ind!R30 -> 615.2042 | F23: =+[1]a13_ind!S30 -> 323.9626171 | G23: =+[1]a13_ind!T30 ->  | K23: 5 | L23: Infraganti | M23: 55 | O23: 132777 | P23: 915.9314805 | S23: 5 | T23: Infraganti | U23: 55 | W23: 132777 | X23: 0.4021673597
A24: =+[1]a13_ind!N31 -> 2011* | B24: EL PASEO | C24: 7 | D24: 1189607 | E24: =7949123666/1000000 -> 7949.123666 | F24: =+[1]a13_ind!S31 -> 4323.861371 | G24: =+[1]a13_ind!T31 ->  | J24: 2008 | K24: 1 | L24: Paraíso travel | M24: 1 | N24: Total de estrenos 213 | O24: 931245 | P24: 7983.28327 | R24: 2008 | S24: 1 | T24: Paraíso travel | U24: 1 | V24: Realeses 213 | W24: 931245 | X24: 3.707414034
A25: =+[1]a13_ind!N32 ->  | B25: LOS COLORES DE LA MONTAQA | C25: 25 | D25: 378218 | E25: =2783148250/1000000 -> 2783.14825 | F25: =+[1]a13_ind!S32 -> 1513.774649 | G25: =+[1]a13_ind!T32 ->  | K25: 2 | L25: Muertos de susto | M25: 13 | O25: 471444 | P25: 3857.159311 | S25: 2 | T25: Muertos de susto | U25: 13 | W25: 471444 | X25: 1.791253808
A26: =+[1]a13_ind!N33 ->  | B26: EL JEFE | C26: 31 | D26: 318441 | E26: =2175272566/1000000 -> 2175.272566 | F26: =+[1]a13_ind!S33 -> 1183.221876 | G26: =+[1]a13_ind!T33 ->  | K26: 3 | L26: Perro come perro | M26: 23 | O26: 295681 | P26: 2551.624991 | S26: 3 | T26: Perro come perro | U26: 23 | W26: 295681 | X26: 1.184967385
A27: =+[1]a13_ind!N34 ->  | B27: EL PARAMO | C27: 29 | D27: 325709 | E27: =2174218150/1000000 -> 2174.21815 | F27: =+[1]a13_ind!S34 -> 657.9596522 | G27: =+[1]a13_ind!T34 ->  | K27: 4 | L27: La milagrosa | M27: 32 | O27: 181000 | P27: 1495.312926 | S27: 4 | T27: La milagrosa | U27: 32 | W27: 181000 | X27: 0.6944190679
A28: =+[1]a13_ind!N35 ->  | B28: EN COMA | C28: 54 | D28: 175588 | E28: =1218870860/1000000 -> 1218.87086 | F28: =+[1]a13_ind!S35 -> 334.8657169 | G28: =+[1]a13_ind!T35 ->  | K28: 5 | L28: Los actores del conflicto | M28: 58 | O28: 90560 | P28: 714.9774588 | S28: 5 | T28: Los actores del conflicto | U28: 58 | W28: 90560 | X28: 0.3320334974
J29: 2007 | K29: 1 | L29: Bluff | M29: 9 | N29: Total de estrenos 189 | O29: 492947 | P29: 4473.663722 | R29: 2007 | S29: 1 | T29: Bluff | U29: 9 | V29: Realeses 189 | W29: 492947 | X29: 1.833198956
K30: 2 | L30: Satanás | M30: 11 | O30: 465408 | P30: 4123.158972 | S30: 2 | T30: Satanás | U30: 11 | W30: 465408 | X30: 1.689570605
K31: 3 | L31: Esto huele mal | M31: 12 | O31: 423363 | P31: 3803.440532 | S31: 3 | T31: Esto huele mal | U31: 12 | W31: 423363 | X31: 1.558557738
K32: 4 | L32: Las cartas del gordo | M32: 20 | O32: 294338 | P32: 2461.531896 | S32: 4 | T32: Las cartas del gordo | U32: 20 | W32: 294338 | X32: 1.008676106
K33: 5 | L33: Muertos de susto | M33: 28 | O33: 196196 | P33: 1765.039381 | S33: 5 | T33: Muertos de susto | U33: 28 | W33: 196196 | X33: 0.7232703555
C36: 1025877400
C37: 748124150
C38: 615627738
C39: 462942900
C40: 284606950

Sheet Población
B1: Población
A2: Chile | B2: 17.27
A3: Canada | B3: 34.48
A4: Argentina | B4: 40.76
A5: Colombia | B5: 46.93
A6: España | B6: 46.24
A7: Mexico | B7: 114.8
A8: Brasil | B8: 196.7
A9: Estados Unidos | B9: 311.6
A10: China | B10: 1341
A11: India | B11: 1210
A12: Japon | B12: 127.4
E27: Población

Sheet PIB habitante
B1: PIB-habitante
A2: Colombia | B2: 6070
A3: Argentina | B3: 9740
A4: México | B4: 9420
A5: Brasil | B5: 10720
A6: Chile | B6: 12280
A7: España | B7: 30890
A8: Canadá | B8: 45560
A9: Estados Unidos | B9: 48620
A10: Japon | B10: 46973
A11: China | B11: 5899
A12: India | B12: 1455
A13: Estimaciones del FMI de ingreso per cápita nominal para 2012
D29: PIB por habitante

Sheet Aprobado FDC
B2: TRM | C2: 1798.120833 | R2: INGLES
B4: P. Aprobado | C4: USD | D4: recaudo FDC | S4: TRM | T4: 1798.120833
A5: 2004 | B5: =4369957731/10^6 -> 4369.957731 | C5: =+Tabla15[[#This Row],[P. Aprobado]]/$C$2 -> 2.430291474 | D5: =6394926619/10^6 -> 6394.926619 | E5: =+Tabla15[[#This Row],[P. Aprobado]]/D5 -> 0.6833475959 | H5: P. Aprobado
A6: 2005 | B6: =7861454127/10^6 -> 7861.454127 | C6: =+Tabla15[[#This Row],[P. Aprobado]]/$C$2 -> 4.372038843 | D6: =5816758144.41/10^6 -> 5816.758144 | E6: =+Tabla15[[#This Row],[P. Aprobado]]/D6 -> 1.351518136 | G6: 2004 | H6: 4369.957731 | S6: Resources Approved | T6: USD | U6: recaudo FDC
A7: 2006 | B7: =7362028401/10^6 -> 7362.028401 | C7: =+Tabla15[[#This Row],[P. Aprobado]]/$C$2 -> 4.094290141 | D7: =6317277050.33/10^6 -> 6317.27705 | E7: =+Tabla15[[#This Row],[P. Aprobado]]/D7 -> 1.165380011 | G7: 2005 | H7: 7861.454127 | R7: 2004 | S7: =(4369957731/10^6)/$T$4 -> 2.430291474 | U7: =(6394926619/10^6)/T4 -> 3.556449878 | V7: =+Tabla159[[#This Row],[Resources Approved]]/U7 -> 0.6833475959
A8: 2007 | B8: =8221916637/10^6 -> 8221.916637 | C8: =+Tabla15[[#This Row],[P. Aprobado]]/$C$2 -> 4.572505076 | D8: =6569619586.03/10^6 -> 6569.619586 | E8: =+Tabla15[[#This Row],[P. Aprobado]]/D8 -> 1.251505742 | G8: 2006 | H8: 7362.028401 | R8: 2005 | S8: =(7861454127/10^6)/T4 -> 4.372038843 | U8: =(5816758144.41/10^6)/T4 -> 3.234909488 | V8: =+Tabla159[[#This Row],[Resources Approved]]/U8 -> 1.351518136
A9: 2008 | B9: =8796421832/10^6 -> 8796.421832 | C9: =+Tabla15[[#This Row],[P. Aprobado]]/$C$2 -> 4.892008184 | D9: =6907736032.32/10^6 -> 6907.736032 | E9: =+Tabla15[[#This Row],[P. Aprobado]]/D9 -> 1.273416035 | G9: 2007 | H9: 8221.916637 | R9: 2006 | S9: =(7362028401/10^6)/T4 -> 4.094290141 | U9: =(6317277050.33/10^6)/T4 -> 3.513266146 | V9: =+Tabla159[[#This Row],[Resources Approved]]/U9 -> 1.165380011
A10: 2009 | B10: =8998968115/10^6 -> 8998.968115 | C10: =+Tabla15[[#This Row],[P. Aprobado]]/$C$2 -> 5.004651494 | D10: =9846234133.65/10^6 -> 9846.234134 | E10: =+Tabla15[[#This Row],[P. Aprobado]]/D10 -> 0.9139502466 | G10: 2008 | H10: 8796.421832 | R10: 2007 | S10: =(8221916637/10^6)/T4 -> 4.572505076 | U10: =(6569619586.03/10^6)/T4 -> 3.653602953 | V10: =+Tabla159[[#This Row],[Resources Approved]]/U10 -> 1.251505742
A11: 2010 | B11: =11638054110/10^6 -> 11638.05411 | C11: =+Tabla15[[#This Row],[P. Aprobado]]/$C$2 -> 6.472342623 | D11: =13780502719.7659/10^6 -> 13780.50272 | E11: =+Tabla15[[#This Row],[P. Aprobado]]/D11 -> 0.8445304461 | G11: 2009 | H11: 8998.968115 | R11: 2008 | S11: =(8796421832/10^6)/T4 -> 4.892008184 | U11: =(6907736032.32/10^6)/T4 -> 3.841641732 | V11: =+Tabla159[[#This Row],[Resources Approved]]/U11 -> 1.273416035
A12: 2011 | B12: =18100094084/10^6 -> 18100.09408 | C12: =+Tabla15[[#This Row],[P. Aprobado]]/$C$2 -> 10.06611666 | D12: =15629752486.304/10^6 -> 15629.75249 | E12: =+Tabla15[[#This Row],[P. Aprobado]]/D12 -> 1.158053789 | G12: 2010 | H12: 11638.05411 | R12: 2009 | S12: =(8998968115/10^6)/T4 -> 5.004651494 | U12: =(9846234133.65/10^6)/T4 -> 5.475846757 | V12: =+Tabla159[[#This Row],[Resources Approved]]/U12 -> 0.9139502466
A13: 2012 | B13: 19865 | C13: =+Tabla15[[#This Row],[P. Aprobado]]/$C$2 -> 11.04764465 | D13: =14974008887/10^6 -> 14974.00889 | E13: =+Tabla15[[#This Row],[P. Aprobado]]/D13 -> 1.326632043 | G13: 2011 | H13: 18100.09408 | R13: 2010 | S13: =(11638054110/10^6)/T4 -> 6.472342623 | U13: =(13780502719.7659/10^6)/T4 -> 7.663835747 | V13: =+Tabla159[[#This Row],[Resources Approved]]/U13 -> 0.8445304461
A14: 2013 | B14: 19.616 | C14: =+Tabla15[[#Totals],[P. Aprobado]]/C2 -> 10.90916675 | G14: 2012 | H14: 19865 | R14: 2011 | S14: =(18100094084/10^6)/T4 -> 10.06611666 | U14: =(15629752486.304/10^6)/T4 -> 8.692270395 | V14: =+Tabla159[[#This Row],[Resources Approved]]/U14 -> 1.158053789
B15: =SUM(Tabla15[[#Data],[#Totals],[P. Aprobado]]) -> 95213.89504 | G15: 2013* | H15: 19616 | R15: 2012 | S15: =(19865240668/10^6)/T4 -> 11.04777849 | U15: =(14974008887/10^6)/T4 -> 8.327587673 | V15: =+Tabla159[[#This Row],[Resources Approved]]/U15 -> 1.326648115
R16: 2013 | S16: =+Tabla15[[#Totals],[P. Aprobado]]/T4 -> 10.90916675
B17: =+SUM(Tabla15[P. Aprobado]) -> 95213.89504
B18: =+B17/1000000 -> 0.09521389504 | T18: =19616/T4 -> 10.90916675
B19: =+B18/1848.0166 -> 5.152220767e-05
C26: 10^6
D27: Recursos aprobados para el FDC
D28: Millones de pesos corrientes. 2004 - 2011*
L29: =+C31/$C$2 -> 1.458856352 | M29: =+D31/$C$2 -> 0.9714351219 | N29: =+L29+M29 -> 2.430291474 | S29: TRM | T29: 1793.83
B30: P. Aprobado | C30: Producción - 70% | D30: Otros estimulos - 30% | E30: P. Aprobado2 | L30: =+C32/$C$2 -> 2.789226862 | M30: =+D32/$C$2 -> 1.58281198 | N30: =+L30+M30 -> 4.372038843
A31: 2004 | B31: 4369957731 | C31: =2623200000/10^6 -> 2623.2 | D31: =1746757731/10^6 -> 1746.757731 | E31: 4369957731 | F31: 8 | L31: 2.90869987 | M31: 1.185590271 | N31: 4.094290141 | T31: P. Aprobado | U31: Producción - 70% | V31: Otros estimulos - 30%
A32: 2005 | B32: 7861454127 | C32: =5015366930/10^6 -> 5015.36693 | D32: =2846087197/10^6 -> 2846.087197 | E32: 7861454127 | F32: 8 | L32: =+C34/$C$2 -> 3.357950082 | M32: 1.066286731 | N32: 4.424236813 | S32: 2004 | T32: =4369.957731/T4 -> 2.430291474 | U32: 2623,2/ | V32: 1746.757731
A33: 2006 | B33: 7362028401 | C33: =5230193835/10^6 -> 5230.193835 | D33: =2131834566/10^6 -> 2131.834566 | E33: 7362028401 | F33: 8 | L33: =+C35/$C$2 -> 3.655482923 | M33: 1.236525261 | N33: 4.892008184 | S33: 2005 | T33: 7861.454127 | U33: 5015.36693 | V33: 2846.087197
A34: 2007 | B34: =+Tabla16[[#This Row],[Producción - 70%]]+Tabla16[[#This Row],[Otros estimulos - 30%]] -> 7955.312385 | C34: =6038000000/10^6 -> 6038 | D34: =1917312385/10^6 -> 1917.312385 | E34: 7246592791 | F34: 10 | L34: 3.726112214 | M34: 1.27853928 | N34: 5.004651494 | S34: 2006 | T34: 7362.028401 | U34: 5230.193835 | V34: 2131.834566
A35: 2008 | B35: =+Tabla16[[#This Row],[Producción - 70%]]+Tabla16[[#This Row],[Otros estimulos - 30%]] -> 8796.421832 | C35: =6573000000/10^6 -> 6573 | D35: =2223421832/10^6 -> 2223.421832 | E35: 8113957849 | F35: 13 | L35: 4.531397362 | M35: 1.940945261 | N35: 6.472342623 | S35: 2007 | T35: 7955.312385 | U35: 6038 | V35: 1917.312385
A36: 2009 | B36: =+Tabla16[[#This Row],[Producción - 70%]]+Tabla16[[#This Row],[Otros estimulos - 30%]] -> 8998.968115 | C36: =6700000000/10^6 -> 6700 | D36: =2298968115/10^6 -> 2298.968115 | E36: 9859475293 | F36: 12 | L36: 7.413294898 | M36: 2.652821766 | N36: 10.06611666 | S36: 2008 | T36: 8796.421832 | U36: 6573 | V36: 2223.421832
A37: 2010 | B37: =+Tabla16[[#This Row],[Producción - 70%]]+Tabla16[[#This Row],[Otros estimulos - 30%]] -> 11638.05411 | C37: =8148000000/10^6 -> 8148 | D37: =3490054110/10^6 -> 3490.05411 | E37: 13648556653 | F37: 10 | L37: =+C39/$C$2 -> 8.013365806 | M37: 3.034278842 | N37: 11.04764465 | S37: 2009 | T37: 8998.968115 | U37: 6700 | V37: 2298.968115
A38: 2011 | B38: =+Tabla16[[#This Row],[Producción - 70%]]+Tabla16[[#This Row],[Otros estimulos - 30%]] -> 18100.09408 | C38: =13330000000/10^6 -> 13330 | D38: =4770094084/10^6 -> 4770.094084 | E38: 17886632672 | F38: 18 | L38: =+C40/$C$2 -> 7.636416722 | M38: 3.272750024 | S38: 2010 | T38: 11638.05411 | U38: 8148 | V38: 3490.05411
A39: 2012 | B39: =+Tabla16[[#This Row],[Producción - 70%]]+Tabla16[[#This Row],[Otros estimulos - 30%]] -> 19865 | C39: 14409 | D39: 5456 | F39: 23 | S39: 2011 | T39: 18100.09408 | U39: 13330 | V39: 4770.094084
A40: 2013* | B40: 19616 | C40: =+Tabla16[[#This Row],[P. Aprobado]]*0.7 -> 13731.2 | D40: =+Tabla16[[#This Row],[P. Aprobado]]*0.3 -> 5884.8 | E40: =+E38/E31*100 -> 409.3090545 | S40: 2012* | T40: 19865.24067 | U40: 14409 | V40: 5456.240668
B41: 2005 | C41: =+C32/B32 -> 6.379693691e-07
B42: 2006 | C42: 7.104283698e-07
B43: 2007 | C43: 0.7589896798
B44: 2008 | C44: 0.7472356517
B45: 2009 | C45: 0.7445298077
B46: 2010 | C46: 0.7001170404
B47: 2011 | C47: =+C38/B38 -> 0.7364602603
B48: 2012 | C48: =+C39/B39 -> 0.7253460861
C74: Asignación de los estímulos aprobados para el FDC
C75: Millones de pesos corrientes. 2004 - 2011*

Sheet Internacionales
A1: Asistencia | K1: Indice de asistencia | W1: Estrenos | X1: Argentina | Y1: Brasil | Z1: Chile | AA1: Colombia | AB1: España | AC1: EE.UU./Canadá (eje der.) | AD1: México | AI1: Asistentes a cine nacional | AT1: Participación asistencia cine nacional | BH1: Numero de pantallas | BR1: Presupuesto promedio por pelicula USD | BS1: Fondos publicos disponibles USD | BX1: PRECIO DE LA BOLETA | CE1: BOX OFFICE
B2: Argentina | C2: Brasil | D2: Chile | E2: Colombia | F2: España | G2: EE.UU./Canadá (eje der.) | H2: México | I2: España2 | J2: EE.UU./Canadá (eje der.)2 | L2: Argentina | M2: Brasil | N2: Chile | O2: Colombia | P2: España | Q2: EE.UU./Canadá | R2: México | S2: España | T2: EE.UU./Canadá | W2: 2000 | X2: 45 | Y2: 24 | Z2: 8 | AA2: =+'Estrenos de películas Col.'!C9 -> 4 | AD2: 16 | AG2: Colombia | AJ2: 2007 | AK2: 2008 | AL2: 2009 | AM2: 2010 | AN2: 2011 | AO2: Indice | AP2: asistencia | AU2: 2007 | AV2: 2008 | AW2: 2009 | AX2: 2010 | AY2: 2011 | BB2: Prom. 2007-2010 | BE2: Prom. 2007-2010 | BI2: 2009 | BJ2: 2010 | BK2: 2011 | BQ2: Chile | BR2: 0.503823 | BS2: 3.86 | BT2: =+BS2/BR2 -> 7.661420777 | BY2: 2010 | BZ2: 2011 | CF2: 2007 | CG2: 2008 | CH2: 2009 | CI2: 2010 | CJ2: 2011 | CK2: 2012
A3: 2000 | B3: 33.572678 | C3: 72 | D3: 11.1 | E3: =+'Asistencia a Cine en Colombia'!B13/10^6 -> 17.2 | F3: 135.3 | G3: 1421 | H3: 90 | I3: 135.3 | J3: 1421 | K3: 2000 | L3: =+Tabla14[[#This Row],[Argentina]]/B41 -> 0.9126978578 | M3: =+Tabla14[[#This Row],[Brasil]]/C41 -> 0.4203643157 | N3: =+Tabla14[[#This Row],[Chile]]/D41 -> 0.7297350602 | O3: =+'Ind de Asistencia a Cine en Col'!B12 -> 0.4268460029 | P3: =+Tabla14[[#This Row],[España]]/F41 -> 3.360405335 | Q3: =+Tabla14[[#This Row],[EE.UU./Canadá (eje der.)]]/G41 -> 4.540763014 | R3: =+Tabla14[[#This Row],[México]]/H41 -> 0.9186860748 | S3: 3.360405335 | T3: 4.540763014 | W3: 2001 | X3: 45 | Y3: 30 | Z3: 19 | AA3: =+'Estrenos de películas Col.'!C10 -> 7 | AB3: 106 | AC3: 454 | AD3: 19 | AG3: =+'Asistencia a Cine en Colombia'!C20 -> 2387135 | AI3: Chile | AJ3: 0.9408 | AK3: 0.9401 | AL3: 0.41366 | AM3: 0.2793 | AN3: 0.900341 | AO3: =+AN3/AQ3*100 -> 5.198273672 | AP3: Chile | AQ3: 17.32 | AT3: Chile | AU3: =+AJ3/AJ35 -> 0.084 | AV3: =+AK3/AK35 -> 0.079 | AW3: 0.03699734599 | AX3: =+AM3/AM35 -> 0.021 | AY3: =+AN3/AN35 -> 0.05198273672 | BA3: Chile | BB3: =+AVERAGE(AU3:AY3) -> 0.05459601654 | BD3: Chile | BE3: =+AVERAGE(AU3:AX3) -> 0.0552493365 | BH3: Chile | BI3: 312 | BJ3: 311 | BK3: 320 | BQ3: Colombia* | BR3: 0.932 | BS3: 7.87 | BT3: =+BS3/BR3 -> 8.444206009 | BX3: Chile | BY3: 5.2 | BZ3: 5.66 | CE3: Chile | CF3: 53.9 | CJ3: 94.9
A4: 2001 | B4: 31.346269 | C4: 75 | D4: 11.4 | E4: =+'Asistencia a Cine en Colombia'!B14/10^6 -> 17.798 | F4: 146.8 | G4: 1430 | H4: 139 | I4: 146.8 | J4: 1430 | K4: 2001 | L4: =+Tabla14[[#This Row],[Argentina]]/B42 -> 0.8436394929 | M4: =+Tabla14[[#This Row],[Brasil]]/C42 -> 0.4314758776 | N4: =+Tabla14[[#This Row],[Chile]]/D42 -> 0.7401636151 | O4: =+'Ind de Asistencia a Cine en Col'!B13 -> 0.4360807605 | P4: =+Tabla14[[#This Row],[España]]/F42 -> 3.605108055 | Q4: =+Tabla14[[#This Row],[EE.UU./Canadá (eje der.)]]/G42 -> 4.522640083 | R4: =+Tabla14[[#This Row],[México]]/H42 -> 1.393749185 | S4: 3.605108055 | T4: 4.522640083 | W4: 2002 | X4: 37 | Y4: 35 | Z4: 8 | AA4: =+'Estrenos de películas Col.'!C11 -> 4 | AB4: 137 | AC4: 475 | AD4: 17 | AG4: =+'Asistencia a Cine en Colombia'!C21 -> 2278429 | AI4: Colombia | AJ4: 2.387135 | AK4: 2.278429 | AL4: 1.20828 | AM4: 1.5307 | AN4: 2.9 | AO4: =0.079*100 -> 7.9 | AP4: Argentina | AQ4: 42.4 | AT4: Colombia | AU4: =+AJ4/AJ36 -> 0.1154937274 | AV4: 0.105664425 | AW4: 0.04463920723 | AX4: 0.04548197478 | AY4: =+AN4/AN36 -> 0.07629571165 | BA4: Argentina | BB4: 0.07751500921 | BD4: Colombia | BE4: =+AVERAGE(AU4:AX4) -> 0.0778198336 | BH4: Colombia | BI4: 593 | BJ4: 598 | BK4: 643 | BQ4: México | BR4: 2.07 | BS4: 25.9 | BT4: =+BS4/BR4 -> 12.51207729 | BX4: Colombia | BY4: 3.36 | BZ4: 4.05 | CE4: Colombia | CI4: 121.7 | CJ4: 147
A5: 2002 | B5: 31.883803 | C5: 90.8 | D5: 11.9 | E5: =+'Asistencia a Cine en Colombia'!B15/10^6 -> 18.399 | F5: 140.71 | G5: 1570 | H5: 132 | I5: 140.71 | J5: 1570 | K5: 2002 | L5: =+Tabla14[[#This Row],[Argentina]]/B43 -> 0.8498721346 | M5: =+Tabla14[[#This Row],[Brasil]]/C43 -> 0.5147654926 | N5: =+Tabla14[[#This Row],[Chile]]/D43 -> 0.7633587786 | O5: =+'Ind de Asistencia a Cine en Col'!B14 -> 0.4451856651 | P5: =+Tabla14[[#This Row],[España]]/F43 -> 3.434967288 | Q5: =+Tabla14[[#This Row],[EE.UU./Canadá (eje der.)]]/G43 -> 4.916620997 | R5: =+Tabla14[[#This Row],[México]]/H43 -> 1.307953746 | S5: 3.434967288 | T5: 4.916620997 | W5: 2003 | X5: 46 | Y5: 26 | Z5: 8 | AA5: =+'Estrenos de películas Col.'!C12 -> 5 | AB5: 110 | AC5: 455 | AD5: 25 | AG5: =+'Asistencia a Cine en Colombia'!C22 -> 1208280 | AI5: Argentina | AJ5: 3.40754 | AK5: 3.63748 | AL5: 5.21478 | AM5: 3.496 | AN5: 3.1 | AO5: =+AN5/AQ4*100 -> 7.311320755 | AP5: Colombia | AQ5: 38.1 | AT5: México | AU5: =+AJ5/AJ37 -> 0.0993946956 | AV5: 0.1079224408 | AW5: 0.1553183207 | AX5: 0.09089176626 | AY5: =+AN5/AN37 -> 0.07294117647 | BA5: Colombia | BB5: 0.10529368 | BD5: México | BE5: 0.1133818058 | BH5: México | BI5: 4480 | BJ5: 4818 | BK5: 5172 | BQ5: Argentina | BR5: 0.503 | BS5: 40.05 | BT5: =+BS5/BR5 -> 79.6222664 | BX5: México | BY5: 3.77 | BZ5: 3.56 | CE5: México | CF5: 615.3 | CG5: 668.8 | CH5: 563.4 | CI5: 713.7 | CJ5: 788.2
A6: 2003 | B6: 33.378781 | C6: 104.6 | D6: 11.5 | E6: =+'Asistencia a Cine en Colombia'!B16/10^6 -> 17.086 | F6: 137.47 | G6: 1520 | H6: 137 | I6: 137.47 | J6: 1520 | K6: 2003 | L6: =+Tabla14[[#This Row],[Argentina]]/B44 -> 0.8814043042 | M6: =+Tabla14[[#This Row],[Brasil]]/C44 -> 0.5844065145 | N6: =+Tabla14[[#This Row],[Chile]]/D44 -> 0.7302050924 | O6: =+'Ind de Asistencia a Cine en Col'!B15 -> 0.4082777782 | P6: =+Tabla14[[#This Row],[España]]/F44 -> 3.299491167 | Q6: =+Tabla14[[#This Row],[EE.UU./Canadá (eje der.)]]/G44 -> 4.715620182 | R6: =+Tabla14[[#This Row],[México]]/H44 -> 1.343045085 | S6: 3.299491167 | T6: 4.715620182 | W6: 2004 | X6: 54 | Y6: 46 | Z6: 12 | AA6: =+'Estrenos de películas Col.'!C13 -> 8 | AB6: 133 | AC6: 489 | AD6: 18 | AG6: =+'Asistencia a Cine en Colombia'!C23 -> 1530700 | AI6: México | AJ6: 13.39598 | AK6: 13.195 | AL6: 12.4066 | AM6: 11.4 | AN6: 13.5 | AO6: =+AN6/AQ6*100 -> 6.585365854 | AP6: Mexico | AQ6: 205 | AT6: Argentina | AU6: =+AJ6/AJ38 -> 0.07534296963 | AV6: 0.07234100877 | AW6: 0.06911754875 | AX6: 0.06025369979 | AY6: =+AN6/AN38 -> 0.06578947368 | BA6: México | BB6: 0.06856894012 | BD6: Argentina | BE6: 0.06926380673 | BH6: Argentina | BI6: 885 | BJ6: 787 | BK6: 787 | BQ6: Brasil | BR6: 2.46 | BS6: 152 | BT6: =+BS6/BR6 -> 61.78861789 | BX6: Argentina | BY6: 4.55 | BZ6: 8.81 | CE6: Argentina | CF6: 107.3 | CG6: 115.2 | CH6: 126.2 | CI6: 173 | CJ6: 235.7 | CK6: 285
A7: 2004 | B7: 44.507697 | C7: 117.4 | D7: 9.9 | E7: =+'Asistencia a Cine en Colombia'!B17/10^6 -> 17.122 | F7: 143.93 | G7: 1500 | H7: 164 | I7: 143.93 | J7: 1500 | K7: 2004 | L7: =+Tabla14[[#This Row],[Argentina]]/B45 -> 1.164330482 | M7: =+Tabla14[[#This Row],[Brasil]]/C45 -> 0.6465256132 | N7: =+Tabla14[[#This Row],[Chile]]/D45 -> 0.6190982428 | O7: =+'Ind de Asistencia a Cine en Col'!B16 -> 0.404121091 | P7: =+Tabla14[[#This Row],[España]]/F45 -> 3.398984532 | Q7: =+Tabla14[[#This Row],[EE.UU./Canadá (eje der.)]]/G45 -> 4.61128412 | R7: =+Tabla14[[#This Row],[México]]/H45 -> 1.592155721 | S7: 3.398984532 | T7: 4.61128412 | W7: 2005 | X7: 65 | Y7: 51 | Z7: 19 | AA7: =+'Estrenos de películas Col.'!C14 -> 8 | AB7: 128 | AC7: 507 | AD7: 25 | AI7: Brasil | AJ7: 10.3 | AK7: 8.8 | AL7: 15.90197 | AM7: 25.6 | AN7: 18 | AO7: =+AN7/AQ7*100 -> 12.70289344 | AP7: Brasil | AQ7: 141.7 | AT7: España | AU7: =+AJ9/AJ39 -> 0.1351 | AV7: =+AK9/AK39 -> 0.1331972915 | AW7: =+AL9/AL39 -> 0.1589235385 | AX7: =+AM9/AM39 -> 0.1273 | AY7: =+AN9/AN39 -> 0.1477987421 | BA7: Brasil | BB7: 0.1404639144 | BD7: España | BE7: 0.1386302075 | BH7: España | BI7: 3665 | BJ7: 4080 | BK7: 3877 | BX7: Brasil | BY7: 5.29 | BZ7: 5.44 | CE7: Brasil | CF7: 363.7 | CG7: 403.4 | CH7: 489.1 | CI7: 714.4 | CJ7: 826.4
A8: 2005 | B8: 37.617695 | C8: 93.6 | D8: 11.185207 | E8: =+'Asistencia a Cine en Colombia'!B18/10^6 -> 15.94 | F8: 127.65 | G8: 1380 | H8: 165.9 | I8: 127.65 | J8: 1380 | K8: 2005 | L8: =+Tabla14[[#This Row],[Argentina]]/B46 -> 0.9747537054 | M8: =+Tabla14[[#This Row],[Brasil]]/C46 -> 0.5081874647 | N8: =+Tabla14[[#This Row],[Chile]]/D46 -> 0.6893385308 | O8: =+'Ind de Asistencia a Cine en Col'!B17 -> 0.3716606038 | P8: =+Tabla14[[#This Row],[España]]/F46 -> 2.965983549 | Q8: =+Tabla14[[#This Row],[EE.UU./Canadá (eje der.)]]/G46 -> 4.203216374 | R8: =+Tabla14[[#This Row],[México]]/H46 -> 1.596021011 | S8: 2.965983549 | T8: 4.203216374 | W8: 2006 | X8: 58 | Y8: 70 | Z8: 11 | AA8: =+'Estrenos de películas Col.'!C15 -> 8 | AB8: 142 | AC8: 594 | AD8: 33 | AI8: EEUU | AJ8: 1260 | AK8: 1248.06 | AL8: 1199.826 | AM8: 1233.72 | AN8: =1280*0.95 -> 1216 | AO8: =+AN8/AQ8*100 -> 95 | AP8: EEUU | AQ8: 1280 | AT8: Brasil | AU8: =+AJ7/AJ40 -> 0.1153157188 | AV8: 0.0987654321 | AW8: 0.1411 | AX8: 0.1897702001 | AY8: 0.1270289344 | BA8: España | BB8: 0.1343960571 | BD8: Brasil | BE8: 0.1362378378 | BH8: Brasil | BI8: 2111 | BJ8: 2233 | BK8: 2358 | BX8: España | BY8: 8.63 | BZ8: 6.8 | CE8: España | CF8: =643.7*1.253 -> 806.5561 | CG8: =619.3*1.253 -> 775.9829 | CH8: =671*1.253 -> 840.763 | CI8: =662.3*1.253 -> 829.8619 | CJ8: =630*1.253 -> 789.39
A9: 2006 | B9: 35.767819 | C9: 90.2 | D9: 11.5 | E9: =+'Asistencia a Cine en Colombia'!B19/10^6 -> 20.216614 | F9: 121.65 | G9: 1400 | H9: 168.4 | I9: 121.65 | J9: 1400 | K9: 2006 | L9: =+Tabla14[[#This Row],[Argentina]]/B47 -> 0.9178060353 | M9: =+Tabla14[[#This Row],[Brasil]]/C47 -> 0.4860856632 | N9: =+Tabla14[[#This Row],[Chile]]/D47 -> 0.7006214207 | O9: =+'Ind de Asistencia a Cine en Col'!B18 -> 0.4657566809 | P9: =+Tabla14[[#This Row],[España]]/F47 -> 2.780063074 | Q9: =+Tabla14[[#This Row],[EE.UU./Canadá (eje der.)]]/G47 -> 4.223699176 | R9: =+Tabla14[[#This Row],[México]]/H47 -> 1.605996738 | S9: 2.780063074 | T9: 4.223699176 | W9: 2007 | X9: 68 | Y9: 82 | Z9: 12 | AA9: =+'Estrenos de películas Col.'!C16 -> 10 | AB9: 137 | AC9: 609 | AD9: 43 | AI9: España | AJ9: 15.797243 | AK9: 14.36 | AL9: 17.48 | AM9: 12.93368 | AN9: 14.1 | AO9: =+AN9/AQ9*100 -> 14.82026487 | AP9: España | AQ9: 95.14 | AT9: EEUU | AU9: 0.9 | AV9: 0.9313880597 | AW9: 0.8449478873 | AX9: 0.9206865672 | AY9: 0.95 | BA9: EEUU | BB9: 0.9094045028 | BD9: EEUU | BE9: 0.8992556285 | BH9: EEUU/Canadá | BI9: 39233 | BJ9: 39547 | BK9: =42390+2992 -> 45382 | CE9: EEUU / CANADA | CF9: 9366 | CG9: 9635 | CH9: 10610 | CI9: 10579 | CJ9: 10190
A10: 2007 | B10: 34.282916 | C10: 89.32 | D10: 11.2 | E10: =+'Asistencia a Cine en Colombia'!B20/10^6 -> 20.668958 | F10: 116.93 | G10: 1400 | H10: 177.8 | I10: 116.93 | J10: 1400 | K10: 2007 | L10: =+Tabla14[[#This Row],[Argentina]]/B48 -> 0.8710975709 | M10: =+Tabla14[[#This Row],[Brasil]]/C48 -> 0.4760128329 | N10: =+Tabla14[[#This Row],[Chile]]/D48 -> 0.6753497347 | O10: =+'Ind de Asistencia a Cine en Col'!B19 -> 0.4705304575 | P10: =+Tabla14[[#This Row],[España]]/F48 -> 2.629117482 | Q10: =+Tabla14[[#This Row],[EE.UU./Canadá (eje der.)]]/G48 -> 4.181775821 | R10: =+Tabla14[[#This Row],[México]]/H48 -> 1.680672269 | S10: 2.629117482 | T10: 4.181775821 | W10: 2008 | X10: 71 | Y10: 79 | Z10: 24 | AA10: =+'Estrenos de películas Col.'!C17 -> 13 | AB10: 139 | AC10: 634 | AD10: 46
A11: 2008 | B11: 33.704575 | C11: 89.1 | D11: 11.9 | E11: =+'Asistencia a Cine en Colombia'!B21/10^6 -> 21.562877 | F11: 107.81 | G11: 1340 | H11: 182.4 | I11: 107.81 | J11: 1340 | K11: 2008 | L11: =+Tabla14[[#This Row],[Argentina]]/B49 -> 0.8479991697 | M11: =+Tabla14[[#This Row],[Brasil]]/C49 -> 0.4699044897 | N11: =+Tabla14[[#This Row],[Chile]]/D49 -> 0.7104477612 | O11: =+'Ind de Asistencia a Cine en Col'!B20 -> 0.4850915771 | P11: =+Tabla14[[#This Row],[España]]/F49 -> 2.380805159 | Q11: =+Tabla14[[#This Row],[EE.UU./Canadá (eje der.)]]/G49 -> 3.96471991 | R11: =+Tabla14[[#This Row],[México]]/H49 -> 1.709738196 | S11: 2.380805159 | T11: 3.96471991 | W11: 2009 | X11: 77 | Y11: 84 | Z11: 15 | AA11: =+'Estrenos de películas Col.'!C18 -> 12 | AB11: 137 | AC11: 655 | AD11: 54 | BH11: Fuente: foro Egeda 2012
A12: 2009 | B12: 33.57479 | C12: 112.7 | D12: 11.180802 | E12: =+'Asistencia a Cine en Colombia'!B22/10^6 -> 27.067685 | F12: 109.99 | G12: 1420 | H12: 179.5 | I12: 109.99 | J12: 1420 | K12: 2009 | L12: =+Tabla14[[#This Row],[Argentina]]/B50 -> 0.8365672497 | M12: =+Tabla14[[#This Row],[Brasil]]/C50 -> 0.5885701453 | N12: =+Tabla14[[#This Row],[Chile]]/D50 -> 0.6583138248 | O12: =+'Ind de Asistencia a Cine en Col'!B21 -> 0.6017871918 | P12: =+Tabla14[[#This Row],[España]]/F50 -> 2.400061098 | Q12: =+Tabla14[[#This Row],[EE.UU./Canadá (eje der.)]]/G50 -> 4.163697833 | R12: =+Tabla14[[#This Row],[México]]/H50 -> 1.668975649 | S12: 2.400061098 | T12: 4.163697833 | W12: 2010 | X12: 84 | Y12: 75 | Z12: 15 | AA12: =+'Estrenos de películas Col.'!C19 -> 10 | AB12: 121 | AC12: 560 | AD12: 54
A13: 2010 | B13: 38.46333 | C13: 134.9 | D13: 13.3 | E13: =+'Asistencia a Cine en Colombia'!B23/10^6 -> 33.655091 | F13: 101.6 | G13: 1340 | H13: 189.2 | I13: 101.6 | J13: 1340 | K13: 2010 | L13: =+Tabla14[[#This Row],[Argentina]]/B51 -> 0.9492665169 | M13: =+Tabla14[[#This Row],[Brasil]]/C51 -> 0.6980486719 | N13: =+Tabla14[[#This Row],[Chile]]/D51 -> 0.7737056428 | O13: =+'Ind de Asistencia a Cine en Col'!B22 -> 0.7395165599 | P13: =+Tabla14[[#This Row],[España]]/F51 -> 2.207831718 | Q13: =+Tabla14[[#This Row],[EE.UU./Canadá (eje der.)]]/G51 -> 3.894714814 | R13: =+Tabla14[[#This Row],[México]]/H51 -> 1.741740083 | S13: 2.207831718 | T13: 3.894714814 | W13: 2011 | X13: 125 | Y13: 100 | Z13: 24 | AA13: 18 | AB13: 142 | AC13: 607 | AD13: 56
A14: 2011 | B14: 42.5 | C14: 141.7 | D14: 17.320697 | E14: =+'Asistencia a Cine en Colombia'!B24/10^6 -> 38.011953 | F14: 95.14 | G14: 1280 | H14: 205.2 | I14: 95.14 | J14: 1280 | K14: 2011 | L14: =+Tabla14[[#This Row],[Argentina]]/B52 -> 1.048890644 | M14: =+Tabla14[[#This Row],[Brasil]]/C52 -> 0.7270395074 | N14: =+Tabla14[[#This Row],[Chile]]/D52 -> 1.013498947 | O14: =+'Ind de Asistencia a Cine en Col'!B23 -> 0.8255463654 | P14: =+Tabla14[[#This Row],[España]]/F52 -> 2.064670139 | Q14: =+Tabla14[[#This Row],[EE.UU./Canadá (eje der.)]]/G52 -> 3.710144928 | R14: =+Tabla14[[#This Row],[México]]/H52 -> 1.809204726 | S14: 2.064670139 | T14: 3.710144928 | W14: 2012 | X14: 130 | AA14: 23
A15: 2011 | B15: 46.6 | G15: =+G5-G13 -> 230 | AH15: 95.14 | AI15: 1280
BQ29: Fuente: Berlinale Project Catalogue 2011 | BX29: Fuente: Berlinale Project Catalogue 2011 - Marché Du film 2011 Focus
AI32: Asistencia a largometrajes nacionales en algunos países iberoamericanos
AI33: 2007 – 2010 | BG33: Fuente: Foro Egeda 2012
AJ34: 2007 | AK34: 2008 | AL34: 2009 | AM34: 2010 | AN34: 2011 | AU34: Participación promedio de los espectadores de largometrajes nacionales en el total de espectadores en algunos países iberoamericanos
W35: Estrenos de largometrajes nacionales en algunos países iberoamericanos y Estados Unidos/Canadá. 2000-2010 | AI35: Chile | AJ35: 11.2 | AK35: 11.9 | AL35: 11.180802 | AM35: 13.3 | AN35: 17.32 | AU35: 2007 – 2010
K36: Índice de asistencia en algunos países iberoamericanos y Estados Unidos/Canadá. 2000-2010 | AI36: Colombia | AJ36: 20.668958 | AK36: 21.562877 | AL36: 27.067685 | AM36: 33.655091 | AN36: 38.01
A37: Asistencia a cine en algunos países iberoamericanos y Estados Unidos/Canadá. 2000-2010 | AI37: Argentina | AJ37: 34.282916 | AK37: 33.704575 | AL37: 33.57479 | AM37: 38.46333 | AN37: 42.5
AI38: México | AJ38: 177.8 | AK38: 182.4 | AL38: 179.5 | AM38: 189.2 | AN38: 205.2
AI39: España | AJ39: 116.93 | AK39: 107.81 | AL39: 109.99 | AM39: 101.6 | AN39: 95.4
A40: Población | B40: Argentina | C40: Brasil | D40: Chile | E40: Colombia | F40: España | G40: EE.UU./Canadá (eje der.) | H40: México | AI40: Brasil | AJ40: 89.32 | AK40: 89.1 | AL40: 112.7 | AM40: 134.9 | AN40: 141.7
A41: 2000 | B41: 36.784 | C41: 171.28 | D41: 15.211 | F41: 40.263 | G41: 312.943 | H41: 97.966 | AI41: EE.UU./Canadá (eje der.) | AJ41: 1400 | AK41: 1340 | AL41: 1420 | AM41: 1340 | AN41: 1280
A42: 2001 | B42: 37.156 | C42: 173.822 | D42: 15.402 | F42: 40.72 | G42: 316.187 | H42: 99.731
A43: 2002 | B43: 37.516 | C43: 176.391 | D43: 15.589 | F43: 40.964 | G43: 319.325 | H43: 100.921
A44: 2003 | B44: 37.87 | C44: 178.985 | D44: 15.749 | F44: 41.664 | G44: 322.333 | H44: 102.007
A45: 2004 | B45: 38.226 | C45: 181.586 | D45: 15.991 | F45: 42.345 | G45: 325.289 | H45: 103.005
A46: 2005 | B46: 38.592 | C46: 184.184 | D46: 16.226 | F46: 43.038 | G46: 328.32 | H46: 103.946
A47: 2006 | B47: 38.971 | C47: 185.564 | D47: 16.414 | F47: 43.758 | G47: 331.463 | H47: 104.857
A48: 2007 | B48: 39.356 | C48: 187.642 | D48: 16.584 | F48: 44.475 | G48: 334.786 | H48: 105.791
A49: 2008 | B49: 39.746 | C49: 189.613 | D49: 16.75 | F49: 45.283 | G49: 337.981 | H49: 106.683
A50: 2009 | B50: 40.134 | C50: 191.481 | D50: 16.984 | F50: 45.828 | G50: 341.043 | H50: 107.551
A51: 2010 | B51: 40.519 | C51: 193.253 | D51: 17.19 | F51: 46.018 | G51: 344.056 | H51: 108.627
A52: 2011 | B52: 40.519 | C52: 194.9 | D52: 17.09 | E52: 46.29 | F52: 46.08 | G52: 345 | H52: 113.42
B55: Country | C55: Subject Descriptor | D55: Units | E55: Scale | F55: Country/Series-specific Notes | G55: 2000 | H55: 2001 | I55: 2002 | J55: 2003 | K55: 2004 | L55: 2005 | M55: 2006 | N55: 2007 | O55: 2008 | P55: 2009 | Q55: 2010
B56: Argentina | C56: Population | D56: Persons | E56: Millions | G56: 36.784 | H56: 37.156 | I56: 37.516 | J56: 37.87 | K56: 38.226 | L56: 38.592 | M56: 38.971 | N56: 39.356 | O56: 39.746 | P56: 40.134 | Q56: 40.519
B57: Brazil | C57: Population | D57: Persons | E57: Millions | G57: 171.28 | H57: 173.822 | I57: 176.391 | J57: 178.985 | K57: 181.586 | L57: 184.184 | M57: 185.564 | N57: 187.642 | O57: 189.613 | P57: 191.481 | Q57: 193.253 | AJ57: 2007 | AK57: 2008 | AL57: 2009 | AM57: 2010 | AN57: 2011
B58: Canada | C58: Population | D58: Persons | E58: Millions | G58: 30.647 | H58: 30.971 | I58: 31.306 | J58: 31.6 | K58: 31.9 | L58: 32.205 | M58: 32.533 | N58: 32.883 | O58: 33.263 | P58: 33.669 | Q58: 34.059 | AI58: Chile | AJ58: =+AJ3/AJ35*100 -> 8.4 | AK58: 7.9 | AL58: 3.699734599 | AM58: 2.1 | AN58: 5.198273672
B59: Chile | C59: Population | D59: Persons | E59: Millions | G59: 15.211 | H59: 15.402 | I59: 15.589 | J59: 15.749 | K59: 15.991 | L59: 16.226 | M59: 16.414 | N59: 16.584 | O59: 16.75 | P59: 16.984 | Q59: 17.19 | AI59: Colombia | AJ59: 11.54937274 | AK59: 10.5664425 | AL59: 4.463920723 | AM59: 4.548197478 | AN59: 7.629571165
B60: Colombia | C60: Population | D60: Persons | E60: Millions | G60: 40.282 | H60: 40.806 | I60: 41.327 | J60: 41.847 | K60: 42.368 | L60: 42.889 | M60: 43.405 | N60: 43.926 | O60: 44.45 | P60: 44.978 | Q60: 45.512 | AI60: Argentina | AJ60: 9.93946956 | AK60: 10.79224408 | AL60: 15.53183207 | AM60: 9.089176626 | AN60: 7.294117647
B61: Mexico | C61: Population | D61: Persons | E61: Millions | G61: 97.966 | H61: 99.731 | I61: 100.921 | J61: 102.007 | K61: 103.005 | L61: 103.946 | M61: 104.857 | N61: 105.791 | O61: 106.683 | P61: 107.551 | Q61: 108.627 | AI61: México | AJ61: 7.534296963 | AK61: 7.234100877 | AL61: 6.911754875 | AM61: 6.025369979 | AN61: 6.578947368
B62: Spain | C62: Population | D62: Persons | E62: Millions | G62: 40.263 | H62: 40.72 | I62: 40.964 | J62: 41.664 | K62: 42.345 | L62: 43.038 | M62: 43.758 | N62: 44.475 | O62: 45.283 | P62: 45.828 | Q62: 46.018 | AI62: España | AJ62: =+AJ9/AJ39*100 -> 13.51 | AK62: =+AK9/AK39*100 -> 13.31972915 | AL62: =+AL9/AL39*100 -> 15.89235385 | AM62: =+AM9/AM39*100 -> 12.73 | AN62: =+AN9/AN39*100 -> 14.77987421
B63: United States | C63: Population | D63: Persons | E63: Millions | G63: 282.296 | H63: 285.216 | I63: 288.019 | J63: 290.733 | K63: 293.389 | L63: 296.115 | M63: 298.93 | N63: 301.903 | O63: 304.718 | P63: 307.374 | Q63: 309.997 | AI63: Brasil | AJ63: =+AJ7/AJ40*100 -> 11.53157188 | AK63: 9.87654321 | AL63: 14.11 | AM63: 18.97702001 | AN63: 12.70289344
F64: EE.UU./Canadá (eje der.) | G64: =+G58+G63 -> 312.943 | H64: =+H58+H63 -> 316.187 | I64: 319.325 | J64: 322.333 | K64: 325.289 | L64: 328.32 | M64: 331.463 | N64: 334.786 | O64: 337.981 | P64: 341.043 | Q64: 344.056 | AI64: EE.UU./Canadá (eje der.) | AJ64: 90 | AK64: 93.13880597 | AL64: 84.49478873 | AM64: 92.06865672 | AN64: 95
AN66: =+AN63/AM63-1 -> -0.3306170607

Sheet Tributarios
A2: Año* | B2: Número de certificados otorgados | D2: Monto | E2: Número de proyectos beneficiados
B3: Inversión | C3: Donación | D3: (Millones de pesos) | F3: 1794
A4: 2004 | B4: 16 | C4: 0 | D4: 505 | E4: 2 | F4: =+D4/$F$3 -> 0.2814938685
A5: 2005 | B5: 5 | C5: 1 | D5: 1956 | E5: 6 | F5: =+D5/$F$3 -> 1.090301003
A6: 2006 | B6: 81 | C6: 2 | D6: 3574 | E6: 12 | F6: =+D6/$F$3 -> 1.99219621
A7: 2007 | B7: 62 | C7: 2 | D7: 7315.314 | E7: 15 | F7: 4.077655518
A8: 2008 | B8: 85 | C8: 0 | D8: 15715 | E8: 21 | F8: 8.759754738
A9: 2009 | B9: 92 | C9: 2 | D9: 10883.3 | E9: 29 | F9: 6.066499443
A10: 2010 | B10: 92 | C10: 1 | D10: 16414.94 | E10: 31 | F10: 9.149910814
A11: 2011 | B11: 145 | C11: 4 | D11: 25871.52 | E11: 32 | F11: 14.42113712
A12: 2012* | D12: 4529.43 | E12: 1 | F12: =+D12/$F$3 -> 2.524765886
A13: Totales | B13: =SUM(B4:B12) -> 578 | C13: =SUM(C4:C12) -> 12 | D13: =SUM(D4:D12) -> 86764.504 | E13: =SUM(E4:E12) -> 149
A40: Estímulos tributarios
A41: Millones de pesos corrientes. 2004 - 2012*

Sheet Evo. prom boleta en Col.
B1: =+[1]a2_ind!AH1 -> Precio promedio | H1: =+[1]a2_ind!AN1 -> Precio real boleta | L1: Gráfico 8
B2: =+[1]a2_ind!AH2 -> COP$ | C2: =+[1]a2_ind!AI2 -> USD$ | H2: =+[1]a2_ind!AN2 -> COP$ (Base junio 2011) | J2: USD | L2: Evolución real del precio promedio de la boleta en Colombia | U2: Precio real en pesos
A3: =+[1]a2_ind!AG3 -> 1990 | B3: =+[1]a2_ind!AH3 -> 423.1439394 | C3: =+[1]a2_ind!AI3 -> 0.8424798698 | G3: =+[1]a2_ind!AM3 -> 1990 | H3: =+[4]a2_ind!$AN$3 -> 4597.240744 | J3: 2.560829383 | L3: 1996 - 2011
A4: =+[1]a2_ind!AG4 -> 1991 | B4: =+[1]a2_ind!AH4 -> 574.4444444 | C4: =+[1]a2_ind!AI4 -> 0.9159565567 | G4: =+[1]a2_ind!AM4 -> 1991 | H4: =+[4]a2_ind!$AN$4 -> 4798.647661 | J4: 2.673020321
A5: =+[1]a2_ind!AG5 -> 1992 | B5: =+[1]a2_ind!AH5 -> 772.4064171 | C5: =+[1]a2_ind!AI5 -> 1.135247648 | G5: =+[1]a2_ind!AM5 -> 1992 | H5: =+[4]a2_ind!$AN$5 -> 5086.537634 | J5: 2.833385449
A6: =+[1]a2_ind!AG6 -> 1993 | B6: =+[1]a2_ind!AH6 -> 1140.738636 | C6: =+[1]a2_ind!AI6 -> 1.450681595 | G6: =+[1]a2_ind!AM6 -> 1993 | H6: =+[4]a2_ind!$AN$6 -> 6184.73602 | J6: 3.445121674
A7: =+[1]a2_ind!AG7 -> 1994 | B7: =+[1]a2_ind!AH7 -> 1621.942857 | C7: =+[1]a2_ind!AI7 -> 1.962328329 | G7: =+[1]a2_ind!AM7 -> 1994 | H7: =+[4]a2_ind!$AN$7 -> 7188.482924 | J7: 4.004245007
A8: =+[1]a2_ind!AG8 -> 1995 | B8: =+[1]a2_ind!AH8 -> 1918.285714 | C8: =+[1]a2_ind!AI8 -> 2.101321307 | G8: =+[1]a2_ind!AM8 -> 1995 | H8: =+[4]a2_ind!$AN$8 -> 7038.350353 | J8: 3.920615734
A9: =+[1]a2_ind!AG9 -> 1996 | B9: =+[1]a2_ind!AH9 -> 2326.537396 | C9: =+[1]a2_ind!AI9 -> 2.244343911 | G9: =+[1]a2_ind!AM9 -> 1996 | H9: =+[4]a2_ind!$AN$9 -> 7022.804041 | I9: 18050 | J9: 3.911955876 | AG9: =18050000/1000 -> 18050
A10: =+[1]a2_ind!AG10 -> 1997 | B10: =+[1]a2_ind!AH10 -> 3007.843137 | C10: =+[1]a2_ind!AI10 -> 2.635876966 | G10: =+[1]a2_ind!AM10 -> 1997 | H10: =+[4]a2_ind!$AN$10 -> 7694.381028 | I10: 17850 | J10: 4.28604855 | AG10: =17850000/1000 -> 17850
A11: =+[1]a2_ind!AG11 -> 1998 | B11: =+[1]a2_ind!AH11 -> 3400.108992 | C11: =+[1]a2_ind!AI11 -> 2.383659133 | G11: =+[1]a2_ind!AM11 -> 1998 | H11: =+[4]a2_ind!$AN$11 -> 7382.341232 | I11: 18350 | J11: 4.112231096 | AG11: =18350000/1000 -> 18350
A12: =+[1]a2_ind!AG12 -> 1999 | B12: =+[1]a2_ind!AH12 -> 3913.445904 | C12: =+[1]a2_ind!AI12 -> 2.22774376 | G12: =+[1]a2_ind!AM12 -> 1999 | H12: =+[4]a2_ind!$AN$12 -> 7771.704148 | I12: 15990 | J12: 4.329120324 | AG12: =15990000/1000 -> 15990
A13: =+[1]a2_ind!AG13 -> 2000 | B13: =+[1]a2_ind!AH13 -> 4404.94186 | C13: =+[1]a2_ind!AI13 -> 2.109729001 | G13: =+[1]a2_ind!AM13 -> 2000 | H13: =+[4]a2_ind!$AN$13 -> 8011.305994 | I13: 17200 | J13: 4.462587219 | AG13: =17200000/1000 -> 17200
A14: =+[1]a2_ind!AG14 -> 2001 | B14: =+[1]a2_ind!AH14 -> 5181.256321 | C14: =+[1]a2_ind!AI14 -> 2.252824618 | G14: =+[1]a2_ind!AM14 -> 2001 | H14: =+[4]a2_ind!$AN$14 -> 8728.181849 | I14: 17798 | J14: 4.861913001 | AG14: =17798000/1000 -> 17798
A15: =+[1]a2_ind!AG15 -> 2002 | B15: =+[1]a2_ind!AH15 -> 6059.133649 | C15: =+[1]a2_ind!AI15 -> 2.419124053 | G15: =+[1]a2_ind!AM15 -> 2002 | H15: =+[4]a2_ind!$AN$15 -> 9631.737175 | I15: 18399 | J15: 5.365226 | AG15: =18399000/1000 -> 18399
A16: =+[1]a2_ind!AG16 -> 2003 | B16: =+[1]a2_ind!AH16 -> 6682.839752 | C16: =+[1]a2_ind!AI16 -> 2.322411508 | G16: =+[1]a2_ind!AM16 -> 2003 | H16: =+[4]a2_ind!$AN$16 -> 9917.428316 | I16: 17086 | J16: 5.5243663 | AG16: =17086000/1000 -> 17086
A17: =+[1]a2_ind!AG17 -> 2004 | B17: =+[1]a2_ind!AH17 -> 7456.663941 | C17: =+[1]a2_ind!AI17 -> 2.836993524 | G17: =+[1]a2_ind!AM17 -> 2004 | H17: =+[4]a2_ind!$AN$17 -> 10441.47041 | I17: 17122 | J17: 5.816276702 | AG17: =17122000/1000 -> 17122
A18: =+[1]a2_ind!AG18 -> 2005 | B18: =+[1]a2_ind!AH18 -> 7596.925972 | C18: =+[1]a2_ind!AI18 -> 3.272940558 | G18: =+[1]a2_ind!AM18 -> 2005 | H18: =+[4]a2_ind!$AN$18 -> 10129.86045 | I18: 15940 | J18: 5.642698683 | AG18: =15940000/1000 -> 15940
A19: =+[1]a2_ind!AG19 -> 2006 | B19: =+[1]a2_ind!AH19 -> 6847.437459 | C19: =+[1]a2_ind!AI19 -> 2.90318493 | G19: =+[1]a2_ind!AM19 -> 2006 | H19: =+[4]a2_ind!$AN$19 -> 8731.237159 | I19: 20216.614 | J19: 4.863614919 | AG19: =20216614/1000 -> 20216.614
A20: =+[1]a2_ind!AG20 -> 2007 | B20: =+[1]a2_ind!AH20 -> 7194.167479 | C20: =+[1]a2_ind!AI20 -> 3.462378463 | G20: =+[1]a2_ind!AM20 -> 2007 | H20: 8698.581393 | I20: 20668.958 | J20: 4.866536572 | AG20: =20668958/1000 -> 20668.958
A21: =+[1]a2_ind!AG21 -> 2008 | B21: =+[1]a2_ind!AH21 -> 7418.758706 | C21: =+[1]a2_ind!AI21 -> 3.775185556 | G21: =+[1]a2_ind!AM21 -> 2008 | H21: 8326.839809 | I21: 21562.877 | J21: 4.66492831 | AG21: =21562877/1000 -> 21562.877
A22: =+[1]a2_ind!AG22 -> 2009 | B22: =+[1]a2_ind!AH22 -> 7317.899365 | C22: =+[1]a2_ind!AI22 -> 3.391687532 | G22: =+[1]a2_ind!AM22 -> 2009 | H22: 8023.444811 | I22: 27067.685 | J22: 4.458217587 | AG22: =27067685/1000 -> 27067.685
A23: =+[1]a2_ind!AG23 -> 2010 | B23: =+[1]a2_ind!AH23 -> 7668.533975 | C23: =+[1]a2_ind!AI23 -> 4.038201195 | G23: =+[1]a2_ind!AM23 -> 2010 | H23: 8195.597537 | I23: 33655.091 | J23: 4.567615475 | AG23: =33655091/1000 -> 33655.091
G24: 2011 | H24: 7952.245006 | I24: 38011.953 | J24: 4.4416278 | AG24: =38011953/1000 -> 38011.953
G25: 2012 | H25: 8023.617971 | J25: 4.462224019
A26: =+[1]a2_ind!AG24 -> 2011* | B26: =+[1]a2_ind!AH24 -> 7805.95326 | C26: =+[1]a2_ind!AI24 -> 4.245984989 | G26: 2011 II sem | H26: 7879.445909 | J26: 4.382044723
G27: 2012 II sem | H27: 7966.253083 | J27: 4.430321331
L28: Gráfico 8
L29: Evolución real del precio promedio de la boleta en Colombia
L30: 1996 - 2011 USD
H40: =+H17/H9 -> 1.486795068

Sheet Informe especial
A2: Cortometrajes colombianos registrados en el Ministerio de Cultura y exhibidos en pantallas
B3: No. Cortometrajes registrado en el Min Cultura. | C3: No. Cortometrajes exhibidos en salas resgistrados ese año
A4: 2007 | B4: 17 | C4: 12
A5: 2008 | B5: 30 | C5: 22
A6: 2009 | B6: 28 | C6: 19
A7: 2010 | B7: 49 | C7: 33
A8: 2011 | B8: 43 | C8: 22
A11: Cortometrajes exhibidos en pantallas y empresas exhibidoras de cortometrajes 2007-2011.
A13: EXHIBICION DE CORTOMETRAJES
A15: AÑO | B15: N° CORTOMETRAJES
A17: 2007 | B17: 31
A18: 2008 | B18: 38
A19: 2009 | B19: 50
A20: 2010 | B20: 67
A21: 2011 | B21: 68
A23: TOTAL | B23: =SUM(B17:B21) -> 254
A26: EXHIBIDORES CORTOMETRAJE
A28: AÑO | B28: N° CORTOMETRAJES
A30: 2007 | B30: 29
A31: 2008 | B31: 30
A32: 2009 | B32: 28
A33: 2010 | B33: 28
A34: 2011 | B34: 29
A37: Características de los cortometrajes colombianos exhibidos en salas 2007- 2011
B39: No Cortometrajes
A40: hasta 7 minutos | B40: 64
A41: hasta 10 minutos | B41: 76
A42: Hasta 20 Minutos | B42: 26
A43: Más de 20 minutos | B43: 23
B45: No Cortometrajes
A46: Animación | B46: 16
A47: Documental | B47: 100
A48: Ficción | B48: 73
B50: No Cortometrajes
A51: Apta para mayores de 15 años | B51: 2
A52: Apta para todo público | B52: 122
A53: Recomendada mayores de 12 años | B53: 11
A54: Recomendada mayores de 7 años | B54: 4
A57: Número de espectadores de cortometraje en pantallas de cine 2007- 2011
B58: Espectadores de Cortometraje | C58: Espectadores Totales | D58: Cortometrajes programados
A59: 2007 | B59: 14074 | C59: 20669 | D59: 31
A60: 2008 | B60: 17511 | C60: 21563 | D60: 38
A61: 2009 | B61: 16870 | C61: 27068 | D61: 50
A62: 2010 | B62: 28463 | C62: 33655 | D62: 67
A63: 2011 | B63: 18998 | C63: 38012 | D63: 68
A65: Descuento en la Cuota para el Desarrollo Cinematográficos - CDC - por exhibición de cortometraje
A66: 2007-2011 (Millones de pesos colombianos)
A67: AÑO | B67: VALOR DESCUENTO
A68: Millones de pesos
A69: 2007 | B69: 4420 | C69: 31
A70: 2008 | B70: 4654 | C70: 38
A71: 2009 | B71: 5881 | C71: 50
A72: 2010 | B72: 8106 | C72: 67
A73: 2011 | B73: 9011 | C73: 68
A76: Presupuesto de producción de los cortometrajes exhibidos en pantallas de cine (pesos colombianos)
A77: 2007-2011
A80: TRM PROMEDIO A JUNIO 2012 | B80: 1793.83
B81: Miles de Dólares
A82: 2007 | B82: =464.572156/B80*1000 -> 258.9833797
A83: 2008 | B83: =1548.377244/B80*1000 -> 863.1683292
A84: 2009 | B84: =1935.599853/B80*1000 -> 1079.031933
A85: 2010 | B85: =2189.198148/B80*1000 -> 1220.404469
A86: 2011 | B86: =1974.472691/B80*1000 -> 1100.702235
B87: Millones de pesos
A88: 2007 | B88: =464.572156 -> 464.572156
A89: 2008 | B89: =1548.377244 -> 1548.377244
A90: 2009 | B90: =1935.599853 -> 1935.599853
A91: 2010 | B91: =2189.198148 -> 2189.198148
A92: 2011 | B92: =1974.472691 -> 1974.472691
A95: RECURSOS ENTREGADOS FDC
A96: 2007-2011
A98: AÑO | B98: APORTES FDC A LA PRODUCCIÓN
A100: 2007 | B100: 250 | C100: 6
A101: 2008 | B101: 250 | C101: 5
A102: 2009 | B102: 250 | C102: 5
A103: 2010 | B103: 455 | C103: 13
A104: 2011 | B104: 899.993 | C104: 17
A106: TOTAL | B106: =SUM(B100:B105) -> 2104.993
A109: ESTIMULOS DE PROMOCIÓN A ENCUENTRSO Y FESTIVALES INTERNACIONALES
A111: AÑO | B111: N° CORTOMETRAJES | C111: VALOR DEL ESTÍMULO
C112: Millones de pesos
A113: 2007 | B113: 2 | C113: 8
A114: 2008 | B114: 3 | C114: 15
A115: 2009 | B115: 12 | C115: 39.493755
A116: 2010 | B116: 7 | C116: 29.673025
A117: 2011 | B117: 16 | C117: 76.306066
A119: TOTAL | B119: =SUM(B113:B118) -> 40 | C119: =SUM(C113:C118) -> 168.472846
A121: Productores de cortometrajes exhibidos en salas
A122: 2007-2011
A123: Hasta 3 Cortometrajes | B123: 131
A124: Más de tres cortometrajes | B124: 4
B125: 8
B126: 9
B127: 5
B128: 9
B129: 10
B130: 13
